Workbook

Sheet Data summary
A1: RUN # 2 | B1: Rate classes | C1: Weather station used for normalization | H1: Test Year
A2: 1 | B2: Residential class | C2: Orangeville | H2: 2004
A3: 2 | B3: Street lighting
A4: 3 | B4: Sentinel lighting
A5: 4 | B5: General service <50kW
A6: 5 | B6: General service >50kW
A7: 6 | B7: Large user
A8: 7 | B8: USL
A9: 8 | B9: Standby
A10: 9 | B10: Intermediate
A13: Monthly kWh by class (with actual weather) | C13: Jan | D13: Feb | E13: Mar | F13: Apr | G13: May | H13: Jun | I13: Jul | J13: Aug | K13: Sep | L13: Oct | M13: Nov | N13: Dec | O13: TOTAL
A14: 1 | B14: Residential class | C14: 25407558.51 | D14: 21613365.29 | E14: 25812856.32 | F14: 11217437.4 | G14: 17512291.27 | H14: 19057920.82 | I14: 24039991.05 | J14: 25274325.28 | K14: 17879949.46 | L14: 21621007.72 | M14: 14806525.07 | N14: 21670939.78 | O14: 245914168
A15: 2 | B15: Street lighting | C15: 848665.92 | D15: 723035 | E15: 681963.73 | F15: 571968.5 | G15: 530416.2 | H15: 454642.5 | I15: 515269.23 | J15: 560724.52 | K15: 630633 | L15: 742582.18 | M15: 791957.2 | N15: 833510.95 | O15: 7885368.93
A16: 3 | B16: Sentinel lighting | C16: 46092.97 | D16: 39710.86 | E16: 38018.4 | F16: 32396.1 | G16: 29663.9 | H16: 26894.7 | I16: 28896.03 | J16: 32360.9 | K16: 35547.6 | L16: 41251.08 | M16: 43730.4 | N16: 45623.43 | O16: 440186.37
A17: 4 | B17: General service <50kW | C17: 11816241.12 | D17: 11129064.93 | E17: 9749882.57 | F17: 4022461.282 | G17: 9172007.336 | H17: 5819207.862 | I17: 14498388.82 | J17: 9303212.092 | K17: 5176313.197 | L17: 10750158.63 | M17: 6525684.326 | N17: 7377829.21 | O17: 105340451.4
A18: 5 | B18: General service >50kW | C18: 22145765.95 | D18: 20422900.84 | E18: 18288528.6 | F18: 32514250.78 | G18: 22537426.57 | H18: 27395562.39 | I18: 19792494.97 | J18: 21360123.94 | K18: 31610376.67 | L18: 15691962.69 | M18: 28831020.61 | N18: 27329640.85 | O18: 287920054.9
A19: 6 | B19: Large user | C19: 4259000.444 | D19: 3841137.685 | E19: 4179955.535 | F19: 3831028.397 | G19: 3877126.107 | H19: 4435976.87 | I19: 3542199.289 | J19: 4488589.767 | K19: 4741501.572 | L19: 4598570.463 | M19: 4495901.322 | N19: 3664041.522 | O19: 49955028.97
A20: 7 | B20: USL | C20: 73777.5 | D20: 73777.5 | E20: 73777.5 | F20: 73777.5 | G20: 73777.5 | H20: 73777.5 | I20: 73777.5 | J20: 73777.5 | K20: 73777.5 | L20: 73777.5 | M20: 73777.5 | N20: 73777.5 | O20: 885330
A21: 8 | B21: Standby | C21: 2100788.202 | D21: 1885747.92 | E21: 2143362.829 | F21: 2648793.249 | G21: 2150453.545 | H21: 3447103.188 | I21: 3520566.363 | J21: 3424708.681 | K21: 3055109.796 | L21: 3745852.105 | M21: 2306025.604 | N21: 2047959.661 | O21: 32476471.14
A22: 9 | B22: Intermediate | C22: 12851447.27 | D22: 13048381.84 | E22: 14572461.64 | F22: 13638884.39 | G22: 14755704.66 | H22: 15399929.36 | I22: 13842750.01 | J22: 15991873.73 | K22: 15673915.81 | L22: 15165396.9 | M22: 14360582.56 | N22: 12466789.48 | O22: 171768117.7
A25: Monthly kWh by class (with normalized weather) | C25: Jan | D25: Feb | E25: Mar | F25: Apr | G25: May | H25: Jun | I25: Jul | J25: Aug | K25: Sep | L25: Oct | M25: Nov | N25: Dec | O25: TOTAL
A26: 1 | B26: Residential class | C26: 25013749.29 | D26: 21750108.23 | E26: 26151932.55 | F26: 11197109.74 | G26: 17279717.88 | H26: 20314517.53 | I26: 25224372.93 | J26: 26935489.21 | K26: 17016505.81 | L26: 21898619.87 | M26: 15162897.75 | N26: 21649938.24 | O26: 249594959
A27: 2 | B27: Street lighting | C27: 848665.92 | D27: 723035 | E27: 681963.73 | F27: 571968.5 | G27: 530416.2 | H27: 454642.5 | I27: 515269.23 | J27: 560724.52 | K27: 630633 | L27: 742582.18 | M27: 791957.2 | N27: 833510.95 | O27: 7885368.93
A28: 3 | B28: Sentinel lighting | C28: 46092.97 | D28: 39710.86 | E28: 38018.4 | F28: 32396.1 | G28: 29663.9 | H28: 26894.7 | I28: 28896.03 | J28: 32360.9 | K28: 35547.6 | L28: 41251.08 | M28: 43730.4 | N28: 45623.43 | O28: 440186.37
A29: 4 | B29: General service <50kW | C29: 11498296.23 | D29: 11239465.57 | E29: 10023638.33 | F29: 4006049.987 | G29: 8993797.852 | H29: 6673734.366 | I29: 15303805.87 | J29: 10432856.94 | K29: 4558570.556 | L29: 10974290.74 | M29: 6813404.039 | N29: 7360873.06 | O29: 107878783.5
A30: 5 | B30: General service >50kW | C30: 21835651.3 | D30: 20530582.39 | E30: 18555542.43 | F30: 32498243.27 | G30: 22367483.86 | H30: 28164445.78 | I30: 20517191.73 | J30: 22376552.96 | K30: 31039953.32 | L30: 15910575.14 | M30: 29111654.95 | N30: 27313102.67 | O30: 290220979.8
A31: 6 | B31: Large user | C31: 4259000.444 | D31: 3841137.685 | E31: 4179955.535 | F31: 3831028.397 | G31: 3877126.107 | H31: 4435976.87 | I31: 3542199.289 | J31: 4488589.767 | K31: 4741501.572 | L31: 4598570.463 | M31: 4495901.322 | N31: 3664041.522 | O31: 49955028.97
A32: 7 | B32: USL | C32: 73777.5 | D32: 73777.5 | E32: 73777.5 | F32: 73777.5 | G32: 73777.5 | H32: 73777.5 | I32: 73777.5 | J32: 73777.5 | K32: 73777.5 | L32: 73777.5 | M32: 73777.5 | N32: 73777.5 | O32: 885330
A33: 8 | B33: Standby | C33: 2100788.202 | D33: 1885747.92 | E33: 2143362.829 | F33: 2648793.249 | G33: 2150453.545 | H33: 3447103.188 | I33: 3520566.363 | J33: 3424708.681 | K33: 3055109.796 | L33: 3745852.105 | M33: 2306025.604 | N33: 2047959.661 | O33: 32476471.14
A34: 9 | B34: Intermediate | C34: 12844215.34 | D34: 13050892.99 | E34: 14578688.45 | F34: 13638511.1 | G34: 14748513.17 | H34: 15471583.01 | I34: 13910285.83 | J34: 16086596.61 | K34: 15633899.93 | L34: 15170494.98 | M34: 14367127 | N34: 12466403.81 | O34: 171967212.2
A37: Residential class information | C37: Equipment saturation
B38: Electric space heating | C38: 0.08
B39: Electric water heating | C39: 0.12
B40: Air conditioning | C40: 0.55
B41: Baseload | C41: 1
A44: General service >50kW | C44: 2004 kWh (Actual) | D44: 2004 kWh (Weather Corrected)
B45: Weather sensitive load | C45: 143708586.5 | D45: 146009511.4
B46: Non-weather sensitive load | C46: 144211468.4 | D46: 144211468.4
B47: TOTAL | C47: 287920054.9 | D47: 290220979.8
A50: Large customers | C50: 2004 kWh (Actual) | D50: 2004 kWh (Weather Corrected)
B51: Weather sensitive load | C51: 0 | D51: 0
B52: Non-weather sensitive load | C52: 49955028.97 | D52: 49955028.97
B53: TOTAL | C53: 49955028.97 | D53: 49955028.97
A56: Stand By | C56: 2004 kWh (Actual) | D56: 2004 kWh (Weather Corrected)
B57: Weather sensitive load | C57: 0 | D57: 0
B58: Non-weather sensitive load | C58: 32476471.14 | D58: 32476471.14
B59: TOTAL | C59: 32476471.14 | D59: 32476471.14
A62: Intermediate | C62: 2004 kWh (Actual) | D62: 2004 kWh (Weather Corrected)
B63: Weather sensitive load | C63: 9443475.35 | D63: 9642569.897
B64: Non-weather sensitive load | C64: 162324642.3 | D64: 162324642.3
B65: TOTAL | C65: 171768117.7 | D65: 171967212.2

Sheet Hourly load shapes by class
A1: ALL UNITS IN GWh
A2: Year | B2: Month | C2: Day | D2: Hour (EST) | E2: Residential | F2: GS>50kW | G2: Street Lighting | H2: Sentinel Lighting | I2: Large User | J2: GS < 50 kW | K2: Intermediate | L2: USL | M2: Stand By | N2: TOTAL LDC sales | O2: =E2 -> Residential | P2: % | Q2: ResidentialForecast | R2: =F2 -> GS>50kW | S2: % | T2: GS>50kW Forecast | U2: =G2 -> Street Lighting | V2: % | W2: Street lighting Forecast | X2: =H2 -> Sentinel Lighting | Y2: % | Z2: Sentinal lighting Forecast | AA2: =J2 -> GS < 50 kW | AB2: % | AC2: GS<50 kW Forecast | AD2: =L2 -> USL | AE2: % | AF2: USL Forecast | AG2: =N2 -> TOTAL LDC sales | AH2: Forecast LDC sales
A3: 2004 | B3: 1 | C3: 1 | D3: 1 | E3: 0.008432204961 | F3: 0.009149233475 | G3: 0.0003855548346 | H3: 3.247803898e-05 | J3: 0.003786622625 | L3: 9.176710073e-05 | N3: 0.02187786103 | O3: =E3*1000000 -> 8432.204961 | P3: =O3/$O$8787 -> 0.0001044664371 | Q3: =P3*$Q$8787 -> 9774.117831 | R3: =F3*1000000 -> 9149.233475 | S3: =R3/$R$8787 -> 7.187959624e-05 | T3: =S3*$T$8787 -> 9592.823945 | U3: =G3*1000000 -> 385.5548346 | V3: =U3/$U$8787 -> 0.0002331545815 | W3: =V3*$W$8787 -> 206.0578354 | X3: =H3*1000000 -> 32.47803898 | Y3: =X3/$X$8787 -> 0.0002331545815 | Z3: =Y3*$Z$8787 -> 23.29681212 | AA3: =J3*1000000 -> 3786.622625 | AB3: =AA3/$AA$8787 -> 0.0001153335894 | AC3: =AB3*$AC$8787 -> 3952.804047 | AD3: =L3*1000000 -> 91.76710073 | AE3: =AD3/$AD$8787 -> 0.0001172960605 | AF3: =AE3*$AF$8787 -> 43.4715034 | AG3: =O3+R3+U3+X3+AA3+AD3 -> 21877.86103 | AH3: =Q3+T3+W3+Z3+AC3+AF3 -> 23592.57197
A4: 2004 | B4: 1 | C4: 1 | D4: 2 | E4: 0.00752750431 | F4: 0.009037214021 | G4: 0.0003855548346 | H4: 3.247803898e-05 | J4: 0.003443047462 | L4: 9.176710073e-05 | N4: 0.02051756577 | O4: =E4*1000000 -> 7527.50431 | P4: =O4/$O$8787 -> 9.325811681e-05 | Q4: =P4*$Q$8787 -> 8725.441855 | R4: =F4*1000000 -> 9037.214021 | S4: =R4/$R$8787 -> 7.099953201e-05 | T4: =S4*$T$8787 -> 9475.373352 | U4: =G4*1000000 -> 385.5548346 | V4: =U4/$U$8787 -> 0.0002331545815 | W4: =V4*$W$8787 -> 206.0578354 | X4: =H4*1000000 -> 32.47803898 | Y4: =X4/$X$8787 -> 0.0002331545815 | Z4: =Y4*$Z$8787 -> 23.29681212 | AA4: =J4*1000000 -> 3443.047462 | AB4: =AA4/$AA$8787 -> 0.0001048689193 | AC4: =AB4*$AC$8787 -> 3594.150591 | AD4: =L4*1000000 -> 91.76710073 | AE4: =AD4/$AD$8787 -> 0.0001172960605 | AF4: =AE4*$AF$8787 -> 43.4715034 | AG4: 20517.56577 | AH4: 22067.79195
A5: 2004 | B5: 1 | C5: 1 | D5: 3 | E5: 0.007108700446 | F5: 0.008957047446 | G5: 0.0003855548346 | H5: 3.247803898e-05 | J5: 0.003199700458 | L5: 9.176710073e-05 | N5: 0.01977524833 | O5: 7108.700446 | P5: 8.806956321e-05 | Q5: 8239.98896 | R5: 8957.047446 | S5: 7.03697152e-05 | T5: 9391.31999 | U5: 385.5548346 | V5: 0.0002331545815 | W5: 206.0578354 | X5: 32.47803898 | Y5: 0.0002331545815 | Z5: 23.29681212 | AA5: 3199.700458 | AB5: 9.745701524e-05 | AC5: 3340.123951 | AD5: 91.76710073 | AE5: 0.0001172960605 | AF5: 43.4715034 | AG5: 19775.24833 | AH5: 21244.25905
A6: 2004 | B6: 1 | C6: 1 | D6: 4 | E6: 0.006679835013 | F6: 0.008913686773 | G6: 0.0003855548346 | H6: 3.247803898e-05 | J6: 0.003413296835 | L6: 9.176710073e-05 | N6: 0.01951661859 | O6: 6679.835013 | P6: 8.275635698e-05 | Q6: 7742.873282 | R6: 8913.686773 | S6: 7.00290585e-05 | T6: 9345.857022 | U6: 385.5548346 | V6: 0.0002331545815 | W6: 206.0578354 | X6: 32.47803898 | Y6: 0.0002331545815 | Z6: 23.29681212 | AA6: 3413.296835 | AB6: 0.0001039627696 | AC6: 3563.094314 | AD6: 91.76710073 | AE6: 0.0001172960605 | AF6: 43.4715034 | AG6: 19516.61859 | AH6: 20924.65077
A7: 2004 | B7: 1 | C7: 1 | D7: 5 | E7: 0.006748730312 | F7: 0.008940886822 | G7: 0.0003855548346 | H7: 3.247803898e-05 | J7: 0.003409213343 | L7: 9.176710073e-05 | N7: 0.01960863045 | O7: 6748.730312 | P7: 8.360989962e-05 | Q7: 7822.732676 | R7: 8940.886822 | S7: 7.024275166e-05 | T7: 9374.375836 | U7: 385.5548346 | V7: 0.0002331545815 | W7: 206.0578354 | X7: 32.47803898 | Y7: 0.0002331545815 | Z7: 23.29681212 | AA7: 3409.213343 | AB7: 0.0001038383939 | AC7: 3558.831612 | AD7: 91.76710073 | AE7: 0.0001172960605 | AF7: 43.4715034 | AG7: 19608.63045 | AH7: 21028.76627
A8: 2004 | B8: 1 | C8: 1 | D8: 6 | E8: 0.007023244667 | F8: 0.00904864698 | G8: 0.0003855548346 | H8: 3.247803898e-05 | J8: 0.003544198532 | L8: 9.176710073e-05 | N8: 0.02012589015 | O8: 7023.244667 | P8: 8.701085307e-05 | Q8: 8140.933628 | R8: 9048.64698 | S8: 7.108935336e-05 | T8: 9487.360625 | U8: 385.5548346 | V8: 0.0002331545815 | W8: 206.0578354 | X8: 32.47803898 | Y8: 0.0002331545815 | Z8: 23.29681212 | AA8: 3544.198532 | AB8: 0.0001079497955 | AC8: 3699.740822 | AD8: 91.76710073 | AE8: 0.0001172960605 | AF8: 43.4715034 | AG8: 20125.89015 | AH8: 21600.86123
A9: 2004 | B9: 1 | C9: 1 | D9: 7 | E9: 0.00752245424 | F9: 0.009443096473 | G9: 0.0003855548346 | H9: 3.247803898e-05 | J9: 0.003805046906 | L9: 9.176710073e-05 | N9: 0.02128039759 | O9: 7522.45424 | P9: 9.319555158e-05 | Q9: 8719.58811 | R9: 9443.096473 | S9: 7.418828731e-05 | T9: 9900.934566 | U9: 385.5548346 | V9: 0.0002331545815 | W9: 206.0578354 | X9: 32.47803898 | Y9: 0.0002331545815 | Z9: 23.29681212 | AA9: 3805.046906 | AB9: 0.0001158947592 | AC9: 3972.036905 | AD9: 91.76710073 | AE9: 0.0001172960605 | AF9: 43.4715034 | AG9: 21280.39759 | AH9: 22865.38573
A10: 2004 | B10: 1 | C10: 1 | D10: 8 | E10: 0.008408720027 | F10: 0.01007417698 | G10: 0.0003855548346 | H10: 3.247803898e-05 | J10: 0.004183907081 | L10: 9.176710073e-05 | N10: 0.02317660407 | O10: 8408.720027 | P10: 0.0001041754826 | Q10: 9746.895472 | R10: 10074.17698 | S10: 7.914627778e-05 | T10: 10562.61232 | U10: 385.5548346 | V10: 0.0002331545815 | W10: 206.0578354 | X10: 32.47803898 | Y10: 0.0002331545815 | Z10: 23.29681212 | AA10: 4183.907081 | AB10: 0.0001274341462 | AC10: 4367.523908 | AD10: 91.76710073 | AE10: 0.0001172960605 | AF10: 43.4715034 | AG10: 23176.60407 | AH10: 24949.85785
A11: 2004 | B11: 1 | C11: 1 | D11: 9 | E11: 0.009804569484 | F11: 0.01047185384 | G11: 0.0003855548346 | H11: 3.247803898e-05 | J11: 0.004359949266 | L11: 9.176710073e-05 | N11: 0.02514617256 | O11: 9804.569484 | P11: 0.0001214686367 | Q11: 11364.88236 | R11: 10471.85384 | S11: 8.227056704e-05 | T11: 10979.5701 | U11: 385.5548346 | V11: 0.0002331545815 | W11: 206.0578354 | X11: 32.47803898 | Y11: 0.0002331545815 | Z11: 23.29681212 | AA11: 4359.949266 | AB11: 0.0001327960687 | AC11: 4551.291959 | AD11: 91.76710073 | AE11: 0.0001172960605 | AF11: 43.4715034 | AG11: 25146.17256 | AH11: 27168.57057
A12: 2004 | B12: 1 | C12: 1 | D12: 10 | E12: 0.01092112547 | F12: 0.01073500029 | G12: 0 | H12: 0 | J12: 0.005014716245 | L12: 9.176710073e-05 | N12: 0.0267626091 | O12: 10921.12547 | P12: 0.0001353016289 | Q12: 12659.12862 | R12: 10735.00029 | S12: 8.433793811e-05 | T12: 11255.47491 | U12: 0 | V12: 0 | W12: 0 | X12: 0 | Y12: 0 | Z12: 0 | AA12: 5014.716245 | AB12: 0.0001527390716 | AC12: 5234.794336 | AD12: 91.76710073 | AE12: 0.0001172960605 | AF12: 43.4715034 | AG12: 26762.6091 | AH12: 29192.86937
A13: 2004 | B13: 1 | C13: 1 | D13: 11 | E13: 0.01102696594 | F13: 0.01103163915 | G13: 0 | H13: 0 | J13: 0.005350203007 | L13: 9.176710073e-05 | N13: 0.0275005752 | O13: 11026.96594 | P13: 0.0001366128846 | Q13: 12781.8127 | R13: 11031.63915 | S13: 8.666843736e-05 | T13: 11566.49598 | U13: 0 | V13: 0 | W13: 0 | X13: 0 | Y13: 0 | Z13: 0 | AA13: 5350.203007 | AB13: 0.0001629573839 | AC13: 5585.004421 | AD13: 91.76710073 | AE13: 0.0001172960605 | AF13: 43.4715034 | AG13: 27500.5752 | AH13: 29976.7846
A14: 2004 | B14: 1 | C14: 1 | D14: 12 | E14: 0.01148443646 | F14: 0.01122623589 | G14: 0 | H14: 0 | J14: 0.005587799237 | L14: 9.176710073e-05 | N14: 0.02839023869 | O14: 11484.43646 | P14: 0.0001422804788 | Q14: 13312.08572 | R14: 11226.23589 | S14: 8.819725779e-05 | T14: 11770.52753 | U14: 0 | V14: 0 | W14: 0 | X14: 0 | Y14: 0 | Z14: 0 | AA14: 5587.799237 | AB14: 0.0001701941299 | AC14: 5833.027906 | AD14: 91.76710073 | AE14: 0.0001172960605 | AF14: 43.4715034 | AG14: 28390.23869 | AH14: 30959.11265
A15: 2004 | B15: 1 | C15: 1 | D15: 13 | E15: 0.01164932592 | F15: 0.01134748329 | G15: 0 | H15: 0 | J15: 0.005414812534 | L15: 9.176710073e-05 | N15: 0.02850338884 | O15: 11649.32592 | P15: 0.0001443232913 | Q15: 13503.21591 | R15: 11347.48329 | S15: 8.914981999e-05 | T15: 11897.65347 | U15: 0 | V15: 0 | W15: 0 | X15: 0 | Y15: 0 | Z15: 0 | AA15: 5414.812534 | AB15: 0.0001649252718 | AC15: 5652.449431 | AD15: 91.76710073 | AE15: 0.0001172960605 | AF15: 43.4715034 | AG15: 28503.38884 | AH15: 31096.79032
A16: 2004 | B16: 1 | C16: 1 | D16: 14 | E16: 0.01128659846 | F16: 0.01129011958 | G16: 0 | H16: 0 | J16: 0.00559492548 | L16: 9.176710073e-05 | N16: 0.02826341062 | O16: 11286.59846 | P16: 0.0001398294672 | Q16: 13082.76349 | R16: 11290.11958 | S16: 8.869915049e-05 | T16: 11837.50855 | U16: 0 | V16: 0 | W16: 0 | X16: 0 | Y16: 0 | Z16: 0 | AA16: 5594.92548 | AB16: 0.0001704111822 | AC16: 5840.466895 | AD16: 91.76710073 | AE16: 0.0001172960605 | AF16: 43.4715034 | AG16: 28263.41062 | AH16: 30804.21044
A17: 2004 | B17: 1 | C17: 1 | D17: 15 | E17: 0.01085942478 | F17: 0.01120148457 | G17: 0 | H17: 0 | J17: 0.005699164255 | L17: 9.176710073e-05 | N17: 0.0278518407 | O17: 10859.42478 | P17: 0.0001345372201 | Q17: 12587.6088 | R17: 11201.48457 | S17: 8.800280267e-05 | T17: 11744.57616 | U17: 0 | V17: 0 | W17: 0 | X17: 0 | Y17: 0 | Z17: 0 | AA17: 5699.164255 | AB17: 0.0001735861043 | AC17: 5949.280339 | AD17: 91.76710073 | AE17: 0.0001172960605 | AF17: 43.4715034 | AG17: 27851.8407 | AH17: 30324.9368
A18: 2004 | B18: 1 | C18: 1 | D18: 16 | E18: 0.01128869634 | F18: 0.01125373499 | G18: 0 | H18: 0 | J18: 0.005452648839 | L18: 9.176710073e-05 | N18: 0.02808684727 | O18: 11288.69634 | P18: 0.0001398554578 | Q18: 13085.19523 | R18: 11253.73499 | S18: 8.841330035e-05 | T18: 11799.35989 | U18: 0 | V18: 0 | W18: 0 | X18: 0 | Y18: 0 | Z18: 0 | AA18: 5452.648839 | AB18: 0.0001660776963 | AC18: 5691.946237 | AD18: 91.76710073 | AE18: 0.0001172960605 | AF18: 43.4715034 | AG18: 28086.84727 | AH18: 30619.97286
A19: 2004 | B19: 1 | C19: 1 | D19: 17 | E19: 0.01277495573 | F19: 0.01134076837 | G19: 0 | H19: 0 | J19: 0.005597129129 | L19: 9.176710073e-05 | N19: 0.02980462033 | O19: 12774.95573 | P19: 0.000158268699 | Q19: 14807.98002 | R19: 11340.76837 | S19: 8.909706522e-05 | T19: 11890.61299 | U19: 0 | V19: 0 | W19: 0 | X19: 0 | Y19: 0 | Z19: 0 | AA19: 5597.129129 | AB19: 0.0001704783013 | AC19: 5842.767255 | AD19: 91.76710073 | AE19: 0.0001172960605 | AF19: 43.4715034 | AG19: 29804.62033 | AH19: 32584.83177
A20: 2004 | B20: 1 | C20: 1 | D20: 18 | E20: 0.01447287959 | F20: 0.01159958296 | G20: 0.0003855548346 | H20: 3.247803898e-05 | J20: 0.006004495076 | L20: 9.176710073e-05 | N20: 0.03258675761 | O20: 14472.87959 | P20: 0.0001793042475 | Q20: 16776.11386 | R20: 11599.58296 | S20: 9.113040367e-05 | T20: 12161.97592 | U20: 385.5548346 | V20: 0.0002331545815 | W20: 206.0578354 | X20: 32.47803898 | Y20: 0.0002331545815 | Z20: 23.29681212 | AA20: 6004.495076 | AB20: 0.0001828859219 | AC20: 6268.011046 | AD20: 91.76710073 | AE20: 0.0001172960605 | AF20: 43.4715034 | AG20: 32586.75761 | AH20: 35478.92697
A21: 2004 | B21: 1 | C21: 1 | D21: 19 | E21: 0.01503774521 | F21: 0.01107457639 | G21: 0.0003855548346 | H21: 3.247803898e-05 | J21: 0.005445511782 | L21: 9.176710073e-05 | N21: 0.03206763335 | O21: 15037.74521 | P21: 0.0001863023575 | Q21: 17430.87297 | R21: 11074.57639 | S21: 8.700576739e-05 | T21: 11611.51498 | U21: 385.5548346 | V21: 0.0002331545815 | W21: 206.0578354 | X21: 32.47803898 | Y21: 0.0002331545815 | Z21: 23.29681212 | AA21: 5445.511782 | AB21: 0.0001658603146 | AC21: 5684.49596 | AD21: 91.76710073 | AE21: 0.0001172960605 | AF21: 43.4715034 | AG21: 32067.63335 | AH21: 34999.71007
A22: 2004 | B22: 1 | C22: 1 | D22: 20 | E22: 0.01446054253 | F22: 0.01076816423 | G22: 0.0003855548346 | H22: 3.247803898e-05 | J22: 0.005466819224 | L22: 9.176710073e-05 | N22: 0.03120532596 | O22: 14460.54253 | P22: 0.0001791514038 | Q22: 16761.81346 | R22: 10768.16423 | S22: 8.459848569e-05 | T22: 11290.24677 | U22: 385.5548346 | V22: 0.0002331545815 | W22: 206.0578354 | X22: 32.47803898 | Y22: 0.0002331545815 | Z22: 23.29681212 | AA22: 5466.819224 | AB22: 0.0001665093003 | AC22: 5706.73851 | AD22: 91.76710073 | AE22: 0.0001172960605 | AF22: 43.4715034 | AG22: 31205.32596 | AH22: 34031.62489
A23: 2004 | B23: 1 | C23: 1 | D23: 21 | E23: 0.01400455206 | F23: 0.01065190392 | G23: 0.0003855548346 | H23: 3.247803898e-05 | J23: 0.005297996799 | L23: 9.176710073e-05 | N23: 0.03046425275 | O23: 14004.55206 | P23: 0.000173502146 | Q23: 16233.25603 | R23: 10651.90392 | S23: 8.368510376e-05 | T23: 11168.3497 | U23: 385.5548346 | V23: 0.0002331545815 | W23: 206.0578354 | X23: 32.47803898 | Y23: 0.0002331545815 | Z23: 23.29681212 | AA23: 5297.996799 | AB23: 0.0001613672784 | AC23: 5530.507069 | AD23: 91.76710073 | AE23: 0.0001172960605 | AF23: 43.4715034 | AG23: 30464.25275 | AH23: 33204.93895
A24: 2004 | B24: 1 | C24: 1 | D24: 22 | E24: 0.01292228064 | F24: 0.01056216073 | G24: 0.0003855548346 | H24: 3.247803898e-05 | J24: 0.005026407199 | L24: 9.176710073e-05 | N24: 0.02902064854 | O24: 12922.28064 | P24: 0.0001600939047 | Q24: 14978.75043 | R24: 10562.16073 | S24: 8.29800497e-05 | T24: 11074.25541 | U24: 385.5548346 | V24: 0.0002331545815 | W24: 206.0578354 | X24: 32.47803898 | Y24: 0.0002331545815 | Z24: 23.29681212 | AA24: 5026.407199 | AB24: 0.0001530951567 | AC24: 5246.998365 | AD24: 91.76710073 | AE24: 0.0001172960605 | AF24: 43.4715034 | AG24: 29020.64854 | AH24: 31572.83036
A25: 2004 | B25: 1 | C25: 1 | D25: 23 | E25: 0.01149001864 | F25: 0.01009627302 | G25: 0.0003855548346 | H25: 3.247803898e-05 | J25: 0.004118172321 | L25: 9.176710073e-05 | N25: 0.02621426396 | O25: 11490.01864 | P25: 0.0001423496363 | Q25: 13318.55625 | R25: 10096.27302 | S25: 7.931987204e-05 | T25: 10585.77966 | U25: 385.5548346 | V25: 0.0002331545815 | W25: 206.0578354 | X25: 32.47803898 | Y25: 0.0002331545815 | Z25: 23.29681212 | AA25: 4118.172321 | AB25: 0.0001254319859 | AC25: 4298.904283 | AD25: 91.76710073 | AE25: 0.0001172960605 | AF25: 43.4715034 | AG25: 26214.26396 | AH25: 28476.06634
A26: 2004 | B26: 1 | C26: 1 | D26: 24 | E26: 0.009133234342 | F26: 0.01012954383 | G26: 0.0003855548346 | H26: 3.247803898e-05 | J26: 0.004187997952 | L26: 9.176710073e-05 | N26: 0.0239605761 | O26: 9133.234342 | P26: 0.0001131514776 | Q26: 10586.71001 | R26: 10129.54383 | S26: 7.958125917e-05 | T26: 10620.66356 | U26: 385.5548346 | V26: 0.0002331545815 | W26: 206.0578354 | X26: 32.47803898 | Y26: 0.0002331545815 | Z26: 23.29681212 | AA26: 4187.997952 | AB26: 0.0001275587467 | AC26: 4371.794313 | AD26: 91.76710073 | AE26: 0.0001172960605 | AF26: 43.4715034 | AG26: 23960.5761 | AH26: 25851.99403
A27: 2004 | B27: 1 | C27: 2 | D27: 1 | E27: 0.007882521043 | F27: 0.01021527932 | G27: 0.0003855548346 | H27: 3.247803898e-05 | J27: 0.002866362786 | L27: 9.176710073e-05 | N27: 0.02147396312 | O27: 7882.521043 | P27: 9.765641279e-05 | Q27: 9136.956446 | R27: 10215.27932 | S27: 8.025482732e-05 | T27: 10710.55584 | U27: 385.5548346 | V27: 0.0002331545815 | W27: 206.0578354 | X27: 32.47803898 | Y27: 0.0002331545815 | Z27: 23.29681212 | AA27: 2866.362786 | AB27: 8.730416031e-05 | AC27: 2992.157272 | AD27: 91.76710073 | AE27: 0.0001172960605 | AF27: 43.4715034 | AG27: 21473.96312 | AH27: 23112.49571
A28: 2004 | B28: 1 | C28: 2 | D28: 2 | E28: 0.006987375808 | F28: 0.01005883963 | G28: 0.0003855548346 | H28: 3.247803898e-05 | J28: 0.002582766384 | L28: 9.176710073e-05 | N28: 0.0201387818 | O28: 6987.375808 | P28: 8.656647442e-05 | Q28: 8099.356549 | R28: 10058.83963 | S28: 7.902578215e-05 | T28: 10546.53135 | U28: 385.5548346 | V28: 0.0002331545815 | W28: 206.0578354 | X28: 32.47803898 | Y28: 0.0002331545815 | Z28: 23.29681212 | AA28: 2582.766384 | AB28: 7.866633334e-05 | AC28: 2696.114831 | AD28: 91.76710073 | AE28: 0.0001172960605 | AF28: 43.4715034 | AG28: 20138.7818 | AH28: 21614.82888
A29: 2004 | B29: 1 | C29: 2 | D29: 3 | E29: 0.006624660649 | F29: 0.009870302373 | G29: 0.0003855548346 | H29: 3.247803898e-05 | J29: 0.002405404878 | L29: 9.176710073e-05 | N29: 0.01941016787 | O29: 6624.660649 | P29: 8.207280277e-05 | Q29: 7678.918393 | R29: 9870.302373 | S29: 7.754456713e-05 | T29: 10348.85307 | U29: 385.5548346 | V29: 0.0002331545815 | W29: 206.0578354 | X29: 32.47803898 | Y29: 0.0002331545815 | Z29: 23.29681212 | AA29: 2405.404878 | AB29: 7.326422672e-05 | AC29: 2510.969557 | AD29: 91.76710073 | AE29: 0.0001172960605 | AF29: 43.4715034 | AG29: 19410.16787 | AH29: 20811.56717
A30: 2004 | B30: 1 | C30: 2 | D30: 4 | E30: 0.006279620716 | F30: 0.009856429475 | G30: 0.0003855548346 | H30: 3.247803898e-05 | J30: 0.00251046259 | L30: 9.176710073e-05 | N30: 0.01915631276 | O30: 6279.620716 | P30: 7.77981092e-05 | Q30: 7278.968324 | R30: 9856.429475 | S30: 7.743557676e-05 | T30: 10334.30756 | U30: 385.5548346 | V30: 0.0002331545815 | W30: 206.0578354 | X30: 32.47803898 | Y30: 0.0002331545815 | Z30: 23.29681212 | AA30: 2510.46259 | AB30: 7.64640922e-05 | AC30: 2620.637879 | AD30: 91.76710073 | AE30: 0.0001172960605 | AF30: 43.4715034 | AG30: 19156.31276 | AH30: 20506.73992
A31: 2004 | B31: 1 | C31: 2 | D31: 5 | E31: 0.006246440186 | F31: 0.009939513634 | G31: 0.0003855548346 | H31: 3.247803898e-05 | J31: 0.002550872227 | L31: 9.176710073e-05 | N31: 0.01924662602 | O31: 6246.440186 | P31: 7.738703619e-05 | Q31: 7240.507398 | R31: 9939.513634 | S31: 7.808831514e-05 | T31: 10421.41996 | U31: 385.5548346 | V31: 0.0002331545815 | W31: 206.0578354 | X31: 32.47803898 | Y31: 0.0002331545815 | Z31: 23.29681212 | AA31: 2550.872227 | AB31: 7.769489573e-05 | AC31: 2662.820952 | AD31: 91.76710073 | AE31: 0.0001172960605 | AF31: 43.4715034 | AG31: 19246.62602 | AH31: 20597.57447
A32: 2004 | B32: 1 | C32: 2 | D32: 6 | E32: 0.006596204535 | F32: 0.01019364469 | G32: 0.0003855548346 | H32: 3.247803898e-05 | J32: 0.002454687061 | L32: 9.176710073e-05 | N32: 0.01975433626 | O32: 6596.204535 | P32: 8.172026049e-05 | Q32: 7645.933734 | R32: 10193.64469 | S32: 8.008485808e-05 | T32: 10687.87228 | U32: 385.5548346 | V32: 0.0002331545815 | W32: 206.0578354 | X32: 32.47803898 | Y32: 0.0002331545815 | Z32: 23.29681212 | AA32: 2454.687061 | AB32: 7.476527174e-05 | AC32: 2562.41456 | AD32: 91.76710073 | AE32: 0.0001172960605 | AF32: 43.4715034 | AG32: 19754.33626 | AH32: 21169.04673
A33: 2004 | B33: 1 | C33: 2 | D33: 7 | E33: 0.007146809507 | F33: 0.01095619023 | G33: 0.0003855548346 | H33: 3.247803898e-05 | J33: 0.002274730648 | L33: 9.176710073e-05 | N33: 0.02088753036 | O33: 7146.809507 | P33: 8.854169567e-05 | Q33: 8284.162749 | R33: 10956.19023 | S33: 8.607568405e-05 | T33: 11487.389 | U33: 385.5548346 | V33: 0.0002331545815 | W33: 206.0578354 | X33: 32.47803898 | Y33: 0.0002331545815 | Z33: 23.29681212 | AA33: 2274.730648 | AB33: 6.928412904e-05 | AC33: 2374.5605 | AD33: 91.76710073 | AE33: 0.0001172960605 | AF33: 43.4715034 | AG33: 20887.53036 | AH33: 22418.9384
A34: 2004 | B34: 1 | C34: 2 | D34: 8 | E34: 0.007841799506 | F34: 0.01206885696 | G34: 0.0003855548346 | H34: 3.247803898e-05 | J34: 0.002328274291 | L34: 9.176710073e-05 | N34: 0.02274873073 | O34: 7841.799506 | P34: 9.715191439e-05 | Q34: 9089.754427 | R34: 12068.85696 | S34: 9.481718528e-05 | T34: 12654.00215 | U34: 385.5548346 | V34: 0.0002331545815 | W34: 206.0578354 | X34: 32.47803898 | Y34: 0.0002331545815 | Z34: 23.29681212 | AA34: 2328.274291 | AB34: 7.091497032e-05 | AC34: 2430.453983 | AD34: 91.76710073 | AE34: 0.0001172960605 | AF34: 43.4715034 | AG34: 22748.73073 | AH34: 24447.03671
A35: 2004 | B35: 1 | C35: 2 | D35: 9 | E35: 0.008704233852 | F35: 0.0129788941 | G35: 0.0003855548346 | H35: 3.247803898e-05 | J35: 0.002489007865 | L35: 9.176710073e-05 | N35: 0.02468193579 | O35: 8704.233852 | P35: 0.0001078365981 | Q35: 10089.43778 | R35: 12978.8941 | S35: 0.0001019667571 | T35: 13608.16144 | U35: 385.5548346 | V35: 0.0002331545815 | W35: 206.0578354 | X35: 32.47803898 | Y35: 0.0002331545815 | Z35: 23.29681212 | AA35: 2489.007865 | AB35: 7.581062057e-05 | AC35: 2598.241583 | AD35: 91.76710073 | AE35: 0.0001172960605 | AF35: 43.4715034 | AG35: 24681.93579 | AH35: 26568.66695
A36: 2004 | B36: 1 | C36: 2 | D36: 10 | E36: 0.009633333099 | F36: 0.01337075048 | G36: 0 | H36: 0 | J36: 0.003172682351 | L36: 9.176710073e-05 | N36: 0.02626853303 | O36: 9633.333099 | P36: 0.0001193471922 | Q36: 11166.39518 | R36: 13370.75048 | S36: 0.0001050453187 | T36: 14019.01654 | U36: 0 | V36: 0 | W36: 0 | X36: 0 | Y36: 0 | Z36: 0 | AA36: 3172.682351 | AB36: 9.663409317e-05 | AC36: 3311.920115 | AD36: 91.76710073 | AE36: 0.0001172960605 | AF36: 43.4715034 | AG36: 26268.53303 | AH36: 28540.80333
A37: 2004 | B37: 1 | C37: 2 | D37: 11 | E37: 0.009825402677 | F37: 0.01355843125 | G37: 0 | H37: 0 | J37: 0.003517272792 | L37: 9.176710073e-05 | N37: 0.02699287382 | O37: 9825.402677 | P37: 0.0001217267388 | Q37: 11389.03098 | R37: 13558.43125 | S37: 0.0001065198048 | T37: 14215.7968 | U37: 0 | V37: 0 | W37: 0 | X37: 0 | Y37: 0 | Z37: 0 | AA37: 3517.272792 | AB37: 0.0001071296868 | AC37: 3671.633407 | AD37: 91.76710073 | AE37: 0.0001172960605 | AF37: 43.4715034 | AG37: 26992.87382 | AH37: 29319.93268
A38: 2004 | B38: 1 | C38: 2 | D38: 12 | E38: 0.01002271689 | F38: 0.01365856092 | G38: 0 | H38: 0 | J38: 0.004093068693 | L38: 9.176710073e-05 | N38: 0.0278661136 | O38: 10022.71689 | P38: 0.000124171261 | Q38: 11617.74605 | R38: 13658.56092 | S38: 0.0001073064587 | T38: 14320.78115 | U38: 0 | V38: 0 | W38: 0 | X38: 0 | Y38: 0 | Z38: 0 | AA38: 4093.068693 | AB38: 0.0001246673753 | AC38: 4272.698946 | AD38: 91.76710073 | AE38: 0.0001172960605 | AF38: 43.4715034 | AG38: 27866.1136 | AH38: 30254.69764
A39: 2004 | B39: 1 | C39: 2 | D39: 13 | E39: 0.009859322509 | F39: 0.01367703876 | G39: 0 | H39: 0 | J39: 0.004349046276 | L39: 9.176710073e-05 | N39: 0.02797717465 | O39: 9859.322509 | P39: 0.0001221469709 | Q39: 11428.34886 | R39: 13677.03876 | S39: 0.0001074516272 | T39: 14340.15487 | U39: 0 | V39: 0 | W39: 0 | X39: 0 | Y39: 0 | Z39: 0 | AA39: 4349.046276 | AB39: 0.0001324639836 | AC39: 4539.910476 | AD39: 91.76710073 | AE39: 0.0001172960605 | AF39: 43.4715034 | AG39: 27977.17465 | AH39: 30351.88571
A40: 2004 | B40: 1 | C40: 2 | D40: 14 | E40: 0.01047997433 | F40: 0.01354824922 | G40: 0 | H40: 0 | J40: 0.003621635541 | L40: 9.176710073e-05 | N40: 0.0277416262 | O40: 10479.97433 | P40: 0.0001298362153 | Q40: 12147.77208 | R40: 13548.24922 | S40: 0.0001064398112 | T40: 14205.12111 | U40: 0 | V40: 0 | W40: 0 | X40: 0 | Y40: 0 | Z40: 0 | AA40: 3621.635541 | AB40: 0.000110308385 | AC40: 3780.576266 | AD40: 91.76710073 | AE40: 0.0001172960605 | AF40: 43.4715034 | AG40: 27741.6262 | AH40: 30176.94096
A41: 2004 | B41: 1 | C41: 2 | D41: 15 | E41: 0.009983527008 | F41: 0.01330312992 | G41: 0 | H41: 0 | J41: 0.003959229405 | L41: 9.176710073e-05 | N41: 0.02733765343 | O41: 9983.527008 | P41: 0.0001236857383 | Q41: 11572.31943 | R41: 13303.12992 | S41: 0.0001045140678 | T41: 13948.11747 | U41: 0 | V41: 0 | W41: 0 | X41: 0 | Y41: 0 | Z41: 0 | AA41: 3959.229405 | AB41: 0.0001205908758 | AC41: 4132.985927 | AD41: 91.76710073 | AE41: 0.0001172960605 | AF41: 43.4715034 | AG41: 27337.65343 | AH41: 29696.89433
A42: 2004 | B42: 1 | C42: 2 | D42: 16 | E42: 0.01008909455 | F42: 0.01320177624 | G42: 0 | H42: 0 | J42: 0.004185683446 | L42: 9.176710073e-05 | N42: 0.02756832133 | O42: 10089.09455 | P42: 0.0001249936126 | Q42: 11694.68714 | R42: 13201.77624 | S42: 0.0001037177976 | T42: 13841.84977 | U42: 0 | V42: 0 | W42: 0 | X42: 0 | Y42: 0 | Z42: 0 | AA42: 4185.683446 | AB42: 0.0001274882511 | AC42: 4369.378231 | AD42: 91.76710073 | AE42: 0.0001172960605 | AF42: 43.4715034 | AG42: 27568.32133 | AH42: 29949.38664
A43: 2004 | B43: 1 | C43: 2 | D43: 17 | E43: 0.01154319523 | F43: 0.01303847201 | G43: 0 | H43: 0 | J43: 0.004580949033 | L43: 9.176710073e-05 | N43: 0.02925438338 | O43: 11543.19523 | P43: 0.0001430084401 | Q43: 13380.19544 | R43: 13038.47201 | S43: 0.0001024348221 | T43: 13670.62791 | U43: 0 | V43: 0 | W43: 0 | X43: 0 | Y43: 0 | Z43: 0 | AA43: 4580.949033 | AB43: 0.0001395273169 | AC43: 4781.990621 | AD43: 91.76710073 | AE43: 0.0001172960605 | AF43: 43.4715034 | AG43: 29254.38338 | AH43: 31876.28547
A44: 2004 | B44: 1 | C44: 2 | D44: 18 | E44: 0.01402061962 | F44: 0.0131241913 | G44: 0.0003855548346 | H44: 3.247803898e-05 | J44: 0.004330545479 | L44: 9.176710073e-05 | N44: 0.03198515637 | O44: 14020.61962 | P44: 0.0001737012067 | Q44: 16251.8806 | R44: 13124.1913 | S44: 0.000103108263 | T44: 13760.50321 | U44: 385.5548346 | V44: 0.0002331545815 | W44: 206.0578354 | X44: 32.47803898 | Y44: 0.0002331545815 | Z44: 23.29681212 | AA44: 4330.545479 | AB44: 0.0001319004833 | AC44: 4520.597745 | AD44: 91.76710073 | AE44: 0.0001172960605 | AF44: 43.4715034 | AG44: 31985.15637 | AH44: 34805.8077
A45: 2004 | B45: 1 | C45: 2 | D45: 19 | E45: 0.01451148036 | F45: 0.01260935482 | G45: 0.0003855548346 | H45: 3.247803898e-05 | J45: 0.003844982539 | L45: 9.176710073e-05 | N45: 0.03147561769 | O45: 14511.48036 | P45: 0.0001797824717 | Q45: 16820.8576 | R45: 12609.35482 | S45: 9.906352656e-05 | T45: 13220.70545 | U45: 385.5548346 | V45: 0.0002331545815 | W45: 206.0578354 | X45: 32.47803898 | Y45: 0.0002331545815 | Z45: 23.29681212 | AA45: 3844.982539 | AB45: 0.0001171111255 | AC45: 4013.725172 | AD45: 91.76710073 | AE45: 0.0001172960605 | AF45: 43.4715034 | AG45: 31475.61769 | AH45: 34328.11438
A46: 2004 | B46: 1 | C46: 2 | D46: 20 | E46: 0.01353602661 | F46: 0.01242866448 | G46: 0.0003855548346 | H46: 3.247803898e-05 | J46: 0.004154739549 | L46: 9.176710073e-05 | N46: 0.03062923062 | O46: 13536.02661 | P46: 0.0001676975926 | Q46: 15690.16879 | R46: 12428.66448 | S46: 9.764395973e-05 | T46: 13031.25454 | U46: 385.5548346 | V46: 0.0002331545815 | W46: 206.0578354 | X46: 32.47803898 | Y46: 0.0002331545815 | Z46: 23.29681212 | AA46: 4154.739549 | AB46: 0.0001265457566 | AC46: 4337.076316 | AD46: 91.76710073 | AE46: 0.0001172960605 | AF46: 43.4715034 | AG46: 30629.23062 | AH46: 33331.3258
A47: 2004 | B47: 1 | C47: 2 | D47: 21 | E47: 0.01310310552 | F47: 0.01224124807 | G47: 0.0003855548346 | H47: 3.247803898e-05 | J47: 0.004047683924 | L47: 9.176710073e-05 | N47: 0.02990183749 | O47: 13103.10552 | P47: 0.0001623341409 | Q47: 15188.35203 | R47: 12241.24807 | S47: 9.617155048e-05 | T47: 12834.75145 | U47: 385.5548346 | V47: 0.0002331545815 | W47: 206.0578354 | X47: 32.47803898 | Y47: 0.0002331545815 | Z47: 23.29681212 | AA47: 4047.683924 | AB47: 0.0001232850384 | AC47: 4225.3224 | AD47: 91.76710073 | AE47: 0.0001172960605 | AF47: 43.4715034 | AG47: 29901.83749 | AH47: 32521.25203
A48: 2004 | B48: 1 | C48: 2 | D48: 22 | E48: 0.01244129533 | F48: 0.01173852908 | G48: 0.0003855548346 | H48: 3.247803898e-05 | J48: 0.003795260741 | L48: 9.176710073e-05 | N48: 0.02848488512 | O48: 12441.29533 | P48: 0.0001541349862 | Q48: 14421.22044 | R48: 11738.52908 | S48: 9.222201324e-05 | T48: 12307.65868 | U48: 385.5548346 | V48: 0.0002331545815 | W48: 206.0578354 | X48: 32.47803898 | Y48: 0.0002331545815 | Z48: 23.29681212 | AA48: 3795.260741 | AB48: 0.0001155966906 | AC48: 3961.82126 | AD48: 91.76710073 | AE48: 0.0001172960605 | AF48: 43.4715034 | AG48: 28484.88512 | AH48: 30963.52653
A49: 2004 | B49: 1 | C49: 2 | D49: 23 | E49: 0.01139109602 | F49: 0.01075390715 | G49: 0.0003855548346 | H49: 3.247803898e-05 | J49: 0.003075506936 | L49: 9.176710073e-05 | N49: 0.02573031009 | O49: 11391.09602 | P49: 0.0001411240857 | Q49: 13203.89095 | R49: 10753.90715 | S49: 8.448647707e-05 | T49: 11275.29845 | U49: 385.5548346 | V49: 0.0002331545815 | W49: 206.0578354 | X49: 32.47803898 | Y49: 0.0002331545815 | Z49: 23.29681212 | AA49: 3075.506936 | AB49: 9.367430801e-05 | AC49: 3210.480016 | AD49: 91.76710073 | AE49: 0.0001172960605 | AF49: 43.4715034 | AG49: 25730.31009 | AH49: 27962.49557
A50: 2004 | B50: 1 | C50: 2 | D50: 24 | E50: 0.009541317948 | F50: 0.01009187643 | G50: 0.0003855548346 | H50: 3.247803898e-05 | J50: 0.003375232962 | L50: 9.176710073e-05 | N50: 0.02351822731 | O50: 9541.317948 | P50: 0.0001182072181 | Q50: 11059.73661 | R50: 10091.87643 | S50: 7.928533084e-05 | T50: 10581.1699 | U50: 385.5548346 | V50: 0.0002331545815 | W50: 206.0578354 | X50: 32.47803898 | Y50: 0.0002331545815 | Z50: 23.29681212 | AA50: 3375.232962 | AB50: 0.0001028034138 | AC50: 3523.359953 | AD50: 91.76710073 | AE50: 0.0001172960605 | AF50: 43.4715034 | AG50: 23518.22731 | AH50: 25437.09261
A51: 2004 | B51: 1 | C51: 3 | D51: 1 | E51: 0.008585197821 | F51: 0.00996529896 | G51: 0.0003855548346 | H51: 3.247803898e-05 | J51: 0.004128022402 | L51: 9.176710073e-05 | N51: 0.02318831916 | O51: 8585.197821 | P51: 0.0001063618629 | Q51: 9951.458188 | R51: 9965.29896 | S51: 7.829089373e-05 | T51: 10448.45546 | U51: 385.5548346 | V51: 0.0002331545815 | W51: 206.0578354 | X51: 32.47803898 | Y51: 0.0002331545815 | Z51: 23.29681212 | AA51: 4128.022402 | AB51: 0.0001257320013 | AC51: 4309.186648 | AD51: 91.76710073 | AE51: 0.0001172960605 | AF51: 43.4715034 | AG51: 23188.31916 | AH51: 24981.92645
A52: 2004 | B52: 1 | C52: 3 | D52: 2 | E52: 0.007667597074 | F52: 0.00977271815 | G52: 0.0003855548346 | H52: 3.247803898e-05 | J52: 0.004125991277 | L52: 9.176710073e-05 | N52: 0.02207610648 | O52: 7667.597074 | P52: 9.499372357e-05 | Q52: 8887.829177 | R52: 9772.71815 | S52: 7.677791115e-05 | T52: 10246.53759 | U52: 385.5548346 | V52: 0.0002331545815 | W52: 206.0578354 | X52: 32.47803898 | Y52: 0.0002331545815 | Z52: 23.29681212 | AA52: 4125.991277 | AB52: 0.0001256701369 | AC52: 4307.066385 | AD52: 91.76710073 | AE52: 0.0001172960605 | AF52: 43.4715034 | AG52: 22076.10648 | AH52: 23714.2593
A53: 2004 | B53: 1 | C53: 3 | D53: 3 | E53: 0.007372760009 | F53: 0.009600972487 | G53: 0.0003855548346 | H53: 3.247803898e-05 | J53: 0.004008326957 | L53: 9.176710073e-05 | N53: 0.02149185943 | O53: 7372.760009 | P53: 9.134099243e-05 | Q53: 8546.07133 | R53: 9600.972487 | S53: 7.542861681e-05 | T53: 10066.46502 | U53: 385.5548346 | V53: 0.0002331545815 | W53: 206.0578354 | X53: 32.47803898 | Y53: 0.0002331545815 | Z53: 23.29681212 | AA53: 4008.326957 | AB53: 0.0001220862973 | AC53: 4184.238196 | AD53: 91.76710073 | AE53: 0.0001172960605 | AF53: 43.4715034 | AG53: 21491.85943 | AH53: 23069.6007
A54: 2004 | B54: 1 | C54: 3 | D54: 4 | E54: 0.007156323539 | F54: 0.009514430202 | G54: 0.0003855548346 | H54: 3.247803898e-05 | J54: 0.00406787004 | L54: 9.176710073e-05 | N54: 0.02124842376 | O54: 7156.323539 | P54: 8.865956485e-05 | Q54: 8295.190858 | R54: 9514.430202 | S54: 7.474871018e-05 | T54: 9975.726832 | U54: 385.5548346 | V54: 0.0002331545815 | W54: 206.0578354 | X54: 32.47803898 | Y54: 0.0002331545815 | Z54: 23.29681212 | AA54: 4067.87004 | AB54: 0.0001238998705 | AC54: 4246.394414 | AD54: 91.76710073 | AE54: 0.0001172960605 | AF54: 43.4715034 | AG54: 21248.42376 | AH54: 22790.13825
A55: 2004 | B55: 1 | C55: 3 | D55: 5 | E55: 0.006946032957 | F55: 0.00962791514 | G55: 0.0003855548346 | H55: 3.247803898e-05 | J55: 0.004269004541 | L55: 9.176710073e-05 | N55: 0.02135275261 | O55: 6946.032957 | P55: 8.605427858e-05 | Q55: 8051.434339 | R55: 9627.91514 | S55: 7.564028777e-05 | T55: 10094.71396 | U55: 385.5548346 | V55: 0.0002331545815 | W55: 206.0578354 | X55: 32.47803898 | Y55: 0.0002331545815 | Z55: 23.29681212 | AA55: 4269.004541 | AB55: 0.000130026059 | AC55: 4456.355993 | AD55: 91.76710073 | AE55: 0.0001172960605 | AF55: 43.4715034 | AG55: 21352.75261 | AH55: 22875.33045
A56: 2004 | B56: 1 | C56: 3 | D56: 6 | E56: 0.007285225221 | F56: 0.009764233358 | G56: 0.0003855548346 | H56: 3.247803898e-05 | J56: 0.00416275989 | L56: 9.176710073e-05 | N56: 0.02172201844 | O56: 7285.225221 | P56: 9.025652549e-05 | Q56: 8444.606134 | R56: 9764.233358 | S56: 7.671125163e-05 | T56: 10237.64142 | U56: 385.5548346 | V56: 0.0002331545815 | W56: 206.0578354 | X56: 32.47803898 | Y56: 0.0002331545815 | Z56: 23.29681212 | AA56: 4162.75989 | AB56: 0.0001267900415 | AC56: 4345.448642 | AD56: 91.76710073 | AE56: 0.0001172960605 | AF56: 43.4715034 | AG56: 21722.01844 | AH56: 23300.52234
A57: 2004 | B57: 1 | C57: 3 | D57: 7 | E57: 0.007823084517 | F57: 0.01025792584 | G57: 0.0003855548346 | H57: 3.247803898e-05 | J57: 0.004074596873 | L57: 9.176710073e-05 | N57: 0.02266540721 | O57: 7823.084517 | P57: 9.692005473e-05 | Q57: 9068.061109 | R57: 10257.92584 | S57: 8.058987346e-05 | T57: 10755.27004 | U57: 385.5548346 | V57: 0.0002331545815 | W57: 206.0578354 | X57: 32.47803898 | Y57: 0.0002331545815 | Z57: 23.29681212 | AA57: 4074.596873 | AB57: 0.0001241047575 | AC57: 4253.416463 | AD57: 91.76710073 | AE57: 0.0001172960605 | AF57: 43.4715034 | AG57: 22665.40721 | AH57: 24349.57376
A58: 2004 | B58: 1 | C58: 3 | D58: 8 | E58: 0.008577086961 | F58: 0.01114060174 | G58: 0.0003855548346 | H58: 3.247803898e-05 | J58: 0.00436579968 | L58: 9.176710073e-05 | N58: 0.02459328836 | O58: 8577.086961 | P58: 0.0001062613776 | Q58: 9942.056554 | R58: 11140.60174 | S58: 8.752448578e-05 | T58: 11680.7415 | U58: 385.5548346 | V58: 0.0002331545815 | W58: 206.0578354 | X58: 32.47803898 | Y58: 0.0002331545815 | Z58: 23.29681212 | AA58: 4365.79968 | AB58: 0.0001329742617 | AC58: 4557.399128 | AD58: 91.76710073 | AE58: 0.0001172960605 | AF58: 43.4715034 | AG58: 24593.28836 | AH58: 26453.02334
A59: 2004 | B59: 1 | C59: 3 | D59: 9 | E59: 0.009715693739 | F59: 0.01167966257 | G59: 0.0003855548346 | H59: 3.247803898e-05 | J59: 0.004039989145 | L59: 9.176710073e-05 | N59: 0.02594514543 | O59: 9715.693739 | P59: 0.0001203675567 | Q59: 11261.8628 | R59: 11679.66257 | S59: 9.175953727e-05 | T59: 12245.9381 | U59: 385.5548346 | V59: 0.0002331545815 | W59: 206.0578354 | X59: 32.47803898 | Y59: 0.0002331545815 | Z59: 23.29681212 | AA59: 4039.989145 | AB59: 0.0001230506695 | AC59: 4217.289924 | AD59: 91.76710073 | AE59: 0.0001172960605 | AF59: 43.4715034 | AG59: 25945.14543 | AH59: 27997.91698
A60: 2004 | B60: 1 | C60: 3 | D60: 10 | E60: 0.01048835198 | F60: 0.01205610948 | G60: 0 | H60: 0 | J60: 0.004734750798 | L60: 9.176710073e-05 | N60: 0.02737097935 | O60: 10488.35198 | P60: 0.0001299400058 | Q60: 12157.48295 | R60: 12056.10948 | S60: 9.471703654e-05 | T60: 12640.63662 | U60: 0 | V60: 0 | W60: 0 | X60: 0 | Y60: 0 | Z60: 0 | AA60: 4734.750798 | AB60: 0.0001442118369 | AC60: 4942.5422 | AD60: 91.76710073 | AE60: 0.0001172960605 | AF60: 43.4715034 | AG60: 27370.97935 | AH60: 29784.13327
A61: 2004 | B61: 1 | C61: 3 | D61: 11 | E61: 0.01071212217 | F61: 0.0124745617 | G61: 0 | H61: 0 | J61: 0.005245842765 | L61: 9.176710073e-05 | N61: 0.02852429374 | O61: 10712.12217 | P61: 0.0001327122907 | Q61: 12416.86425 | R61: 12474.5617 | S61: 9.800454442e-05 | T61: 13079.37704 | U61: 0 | V61: 0 | W61: 0 | X61: 0 | Y61: 0 | Z61: 0 | AA61: 5245.842765 | AB61: 0.0001597787621 | AC61: 5476.064179 | AD61: 91.76710073 | AE61: 0.0001172960605 | AF61: 43.4715034 | AG61: 28524.29374 | AH61: 31015.77696
A62: 2004 | B62: 1 | C62: 3 | D62: 12 | E62: 0.01087078891 | F62: 0.01250563455 | G62: 0 | H62: 0 | J62: 0.005462672013 | L62: 9.176710073e-05 | N62: 0.02893086258 | O62: 10870.78891 | P62: 0.0001346780102 | Q62: 12600.78144 | R62: 12505.63455 | S62: 9.824866363e-05 | T62: 13111.95642 | U62: 0 | V62: 0 | W62: 0 | X62: 0 | Y62: 0 | Z62: 0 | AA62: 5462.672013 | AB62: 0.0001663829838 | AC62: 5702.409293 | AD62: 91.76710073 | AE62: 0.0001172960605 | AF62: 43.4715034 | AG62: 28930.86258 | AH62: 31458.61865
A63: 2004 | B63: 1 | C63: 3 | D63: 13 | E63: 0.01110862026 | F63: 0.0125169385 | G63: 0 | H63: 0 | J63: 0.004937853637 | L63: 9.176710073e-05 | N63: 0.02865517949 | O63: 11108.62026 | P63: 0.0001376244985 | Q63: 12876.4616 | R63: 12516.9385 | S63: 9.83374714e-05 | T63: 13123.80842 | U63: 0 | V63: 0 | W63: 0 | X63: 0 | Y63: 0 | Z63: 0 | AA63: 4937.853637 | AB63: 0.0001503979774 | AC63: 5154.558502 | AD63: 91.76710073 | AE63: 0.0001172960605 | AF63: 43.4715034 | AG63: 28655.17949 | AH63: 31198.30002
A64: 2004 | B64: 1 | C64: 3 | D64: 14 | E64: 0.01085757147 | F64: 0.01265602449 | G64: 0 | H64: 0 | J64: 0.004770341834 | L64: 9.176710073e-05 | N64: 0.02837570489 | O64: 10857.57147 | P64: 0.0001345142596 | Q64: 12585.46055 | R64: 12656.02449 | S64: 9.943017987e-05 | T64: 13269.63784 | U64: 0 | V64: 0 | W64: 0 | X64: 0 | Y64: 0 | Z64: 0 | AA64: 4770.341834 | AB64: 0.0001452958747 | AC64: 4979.695201 | AD64: 91.76710073 | AE64: 0.0001172960605 | AF64: 43.4715034 | AG64: 28375.70489 | AH64: 30878.2651
A65: 2004 | B65: 1 | C65: 3 | D65: 15 | E65: 0.01110786467 | F65: 0.0124798619 | G65: 0 | H65: 0 | J65: 0.004335166685 | L65: 9.176710073e-05 | N65: 0.02801466036 | O65: 11107.86467 | P65: 0.0001376151376 | Q65: 12875.58576 | R65: 12479.8619 | S65: 9.804618464e-05 | T65: 13084.93421 | U65: 0 | V65: 0 | W65: 0 | X65: 0 | Y65: 0 | Z65: 0 | AA65: 4335.166685 | AB65: 0.0001320412367 | AC65: 4525.421759 | AD65: 91.76710073 | AE65: 0.0001172960605 | AF65: 43.4715034 | AG65: 28014.66036 | AH65: 30529.41324
A66: 2004 | B66: 1 | C66: 3 | D66: 16 | E66: 0.01086440174 | F66: 0.01229878039 | G66: 0 | H66: 0 | J66: 0.004468222507 | L66: 9.176710073e-05 | N66: 0.02772317174 | O66: 10864.40174 | P66: 0.0001345988797 | Q66: 12593.3778 | R66: 12298.78039 | S66: 9.662354462e-05 | T66: 12895.07316 | U66: 0 | V66: 0 | W66: 0 | X66: 0 | Y66: 0 | Z66: 0 | AA66: 4468.222507 | AB66: 0.0001360938734 | AC66: 4664.316929 | AD66: 91.76710073 | AE66: 0.0001172960605 | AF66: 43.4715034 | AG66: 27723.17174 | AH66: 30196.2394
A67: 2004 | B67: 1 | C67: 3 | D67: 17 | E67: 0.01182956405 | F67: 0.0123102239 | G67: 0 | H67: 0 | J67: 0.004942743203 | L67: 9.176710073e-05 | N67: 0.02917429825 | O67: 11829.56405 | P67: 0.0001465562583 | Q67: 13712.13739 | R67: 12310.2239 | S67: 9.671344881e-05 | T67: 12907.07149 | U67: 0 | V67: 0 | W67: 0 | X67: 0 | Y67: 0 | Z67: 0 | AA67: 4942.743203 | AB67: 0.0001505469046 | AC67: 5159.662653 | AD67: 91.76710073 | AE67: 0.0001172960605 | AF67: 43.4715034 | AG67: =O67+R67+U67+X67+AA67+AD67 -> 29174.29825 | AH67: =Q67+T67+W67+Z67+AC67+AF67 -> 31822.34304
A68: 2004 | B68: 1 | C68: 3 | D68: 18 | E68: 0.01363650202 | F68: 0.01242155978 | G68: 0.0003855548346 | H68: 3.247803898e-05 | J68: 0.004474246846 | L68: 9.176710073e-05 | N68: 0.03104210862 | O68: =E68*1000000 -> 13636.50202 | P68: =O68/$O$8787 -> 0.0001689423806 | Q68: =P68*$Q$8787 -> 15806.63399 | R68: =F68*1000000 -> 12421.55978 | S68: =R68/$R$8787 -> 9.758814265e-05 | T68: =S68*$T$8787 -> 13023.80537 | U68: =G68*1000000 -> 385.5548346 | V68: =U68/$U$8787 -> 0.0002331545815 | W68: =V68*$W$8787 -> 206.0578354 | X68: =H68*1000000 -> 32.47803898 | Y68: =X68/$X$8787 -> 0.0002331545815 | Z68: =Y68*$Z$8787 -> 23.29681212 | AA68: =J68*1000000 -> 4474.246846 | AB68: =AA68/$AA$8787 -> 0.0001362773637 | AC68: =AB68*$AC$8787 -> 4670.605655 | AD68: =L68*1000000 -> 91.76710073 | AE68: =AD68/$AD$8787 -> 0.0001172960605 | AF68: =AE68*$AF$8787 -> 43.4715034 | AG68: 31042.10862 | AH68: 33773.87116
A69: 2004 | B69: 1 | C69: 3 | D69: 19 | E69: 0.01378982827 | F69: 0.01232694017 | G69: 0.0003855548346 | H69: 3.247803898e-05 | J69: 0.00492959977 | L69: 9.176710073e-05 | N69: 0.03155616818 | O69: 13789.82827 | P69: 0.0001708419368 | Q69: 15984.3608 | R69: 12326.94017 | S69: 9.68447777e-05 | T69: 12924.59823 | U69: 385.5548346 | V69: 0.0002331545815 | W69: 206.0578354 | X69: 32.47803898 | Y69: 0.0002331545815 | Z69: 23.29681212 | AA69: 4929.59977 | AB69: 0.0001501465797 | AC69: 5145.942402 | AD69: 91.76710073 | AE69: 0.0001172960605 | AF69: 43.4715034 | AG69: 31556.16818 | AH69: 34327.72758
A70: 2004 | B70: 1 | C70: 3 | D70: 20 | E70: 0.01316330009 | F70: 0.01193644004 | G70: 0.0003855548346 | H70: 3.247803898e-05 | J70: 0.004616905541 | L70: 9.176710073e-05 | N70: 0.03022644565 | O70: 13163.30009 | P70: 0.0001630798904 | Q70: 15258.12604 | R70: 11936.44004 | S70: 9.377687138e-05 | T70: 12515.16514 | U70: 385.5548346 | V70: 0.0002331545815 | W70: 206.0578354 | X70: 32.47803898 | Y70: 0.0002331545815 | Z70: 23.29681212 | AA70: 4616.905541 | AB70: 0.0001406224862 | AC70: 4819.525133 | AD70: 91.76710073 | AE70: 0.0001172960605 | AF70: 43.4715034 | AG70: 30226.44565 | AH70: 32865.64247
A71: 2004 | B71: 1 | C71: 3 | D71: 21 | E71: 0.01258308534 | F71: 0.0117068379 | G71: 0.0003855548346 | H71: 3.247803898e-05 | J71: 0.004829830051 | L71: 9.176710073e-05 | N71: 0.02962955327 | O71: 12583.08534 | P71: 0.0001558916201 | Q71: 14585.57511 | R71: 11706.8379 | S71: 9.19730362e-05 | T71: 12274.43099 | U71: 385.5548346 | V71: 0.0002331545815 | W71: 206.0578354 | X71: 32.47803898 | Y71: 0.0002331545815 | Z71: 23.29681212 | AA71: 4829.830051 | AB71: 0.0001471077768 | AC71: 5041.794144 | AD71: 91.76710073 | AE71: 0.0001172960605 | AF71: 43.4715034 | AG71: 29629.55327 | AH71: 32174.6264
A72: 2004 | B72: 1 | C72: 3 | D72: 22 | E72: 0.01187986371 | F72: 0.01135481395 | G72: 0.0003855548346 | H72: 3.247803898e-05 | J72: 0.004480106433 | L72: 9.176710073e-05 | N72: 0.02822458406 | O72: 11879.86371 | P72: 0.0001471794199 | Q72: 13770.4418 | R72: 11354.81395 | S72: 8.920741222e-05 | T72: 11905.33955 | U72: 385.5548346 | V72: 0.0002331545815 | W72: 206.0578354 | X72: 32.47803898 | Y72: 0.0002331545815 | Z72: 23.29681212 | AA72: 4480.106433 | AB72: 0.000136455836 | AC72: 4676.722398 | AD72: 91.76710073 | AE72: 0.0001172960605 | AF72: 43.4715034 | AG72: 28224.58406 | AH72: 30625.3299
A73: 2004 | B73: 1 | C73: 3 | D73: 23 | E73: 0.01088434981 | F73: 0.0108979709 | G73: 0.0003855548346 | H73: 3.247803898e-05 | J73: 0.004292277656 | L73: 9.176710073e-05 | N73: 0.02658439834 | O73: 10884.34981 | P73: 0.0001348460159 | Q73: 12616.50043 | R73: 10897.9709 | S73: 8.561829252e-05 | T73: 11426.34697 | U73: 385.5548346 | V73: 0.0002331545815 | W73: 206.0578354 | X73: 32.47803898 | Y73: 0.0002331545815 | Z73: 23.29681212 | AA73: 4292.277656 | AB73: 0.0001307349155 | AC73: 4480.650482 | AD73: 91.76710073 | AE73: 0.0001172960605 | AF73: 43.4715034 | AG73: 26584.39834 | AH73: 28796.32403
A74: 2004 | B74: 1 | C74: 3 | D74: 24 | E74: 0.009424628119 | F74: 0.01032352101 | G74: 0.0003855548346 | H74: 3.247803898e-05 | J74: 0.003725803212 | L74: 9.176710073e-05 | N74: 0.02398375231 | O74: 9424.628119 | P74: 0.0001167615499 | Q74: 10924.4766 | R74: 10323.52101 | S74: 8.110521214e-05 | T74: 10824.04551 | U74: 385.5548346 | V74: 0.0002331545815 | W74: 206.0578354 | X74: 32.47803898 | Y74: 0.0002331545815 | Z74: 23.29681212 | AA74: 3725.803212 | AB74: 0.0001134811415 | AC74: 3889.315487 | AD74: 91.76710073 | AE74: 0.0001172960605 | AF74: 43.4715034 | AG74: 23983.75231 | AH74: 25910.66375
A75: 2004 | B75: 1 | C75: 4 | D75: 1 | E75: 0.007998895753 | F75: 0.01008455715 | G75: 0.0003855548346 | H75: 3.247803898e-05 | J75: 0.003429577179 | L75: 9.176710073e-05 | N75: 0.02202283006 | O75: 7998.895753 | P75: 9.9098177e-05 | Q75: 9271.85119 | R75: 10084.55715 | S75: 7.922782804e-05 | T75: 10573.49576 | U75: 385.5548346 | V75: 0.0002331545815 | W75: 206.0578354 | X75: 32.47803898 | Y75: 0.0002331545815 | Z75: 23.29681212 | AA75: 3429.577179 | AB75: 0.0001044586391 | AC75: 3580.089145 | AD75: 91.76710073 | AE75: 0.0001172960605 | AF75: 43.4715034 | AG75: 22022.83006 | AH75: 23698.26224
A76: 2004 | B76: 1 | C76: 4 | D76: 2 | E76: 0.00714676318 | F76: 0.01002721363 | G76: 0.0003855548346 | H76: 3.247803898e-05 | J76: 0.0033017881 | L76: 9.176710073e-05 | N76: 0.02098556488 | O76: 7146.76318 | P76: 8.854112173e-05 | Q76: 8284.10905 | R76: 10027.21363 | S76: 7.877731715e-05 | T76: 10513.372 | U76: 385.5548346 | V76: 0.0002331545815 | W76: 206.0578354 | X76: 32.47803898 | Y76: 0.0002331545815 | Z76: 23.29681212 | AA76: 3301.7881 | AB76: 0.0001005664178 | AC76: 3446.691857 | AD76: 91.76710073 | AE76: 0.0001172960605 | AF76: 43.4715034 | AG76: 20985.56488 | AH76: 22516.99905
A77: 2004 | B77: 1 | C77: 4 | D77: 3 | E77: 0.006755518762 | F77: 0.009874284797 | G77: 0.0003855548346 | H77: 3.247803898e-05 | J77: 0.003264651624 | L77: 9.176710073e-05 | N77: 0.02040425516 | O77: 6755.518762 | P77: 8.36940016e-05 | Q77: 7830.601449 | R77: 9874.284797 | S77: 7.757585445e-05 | T77: 10353.02858 | U77: 385.5548346 | V77: 0.0002331545815 | W77: 206.0578354 | X77: 32.47803898 | Y77: 0.0002331545815 | Z77: 23.29681212 | AA77: 3264.651624 | AB77: 9.943530879e-05 | AC77: 3407.925593 | AD77: 91.76710073 | AE77: 0.0001172960605 | AF77: 43.4715034 | AG77: 20404.25516 | AH77: 21864.38177
A78: 2004 | B78: 1 | C78: 4 | D78: 4 | E78: 0.006472115405 | F78: 0.00988999987 | G78: 0.0003855548346 | H78: 3.247803898e-05 | J78: 0.00338793477 | L78: 9.176710073e-05 | N78: 0.02025985002 | O78: 6472.115405 | P78: 8.018292247e-05 | Q78: 7502.096886 | R78: 9889.99987 | S78: 7.769931759e-05 | T78: 10369.50558 | U78: 385.5548346 | V78: 0.0002331545815 | W78: 206.0578354 | X78: 32.47803898 | Y78: 0.0002331545815 | Z78: 23.29681212 | AA78: 3387.93477 | AB78: 0.0001031902876 | AC78: 3536.619198 | AD78: 91.76710073 | AE78: 0.0001172960605 | AF78: 43.4715034 | AG78: 20259.85002 | AH78: 21681.04782
A79: 2004 | B79: 1 | C79: 4 | D79: 5 | E79: 0.006526032854 | F79: 0.009884628908 | G79: 0.0003855548346 | H79: 3.247803898e-05 | J79: 0.003253358921 | L79: 9.176710073e-05 | N79: 0.02017382066 | O79: 6526.032854 | P79: 8.085090478e-05 | Q79: 7564.594833 | R79: 9884.628908 | S79: 7.765712142e-05 | T79: 10363.87421 | U79: 385.5548346 | V79: 0.0002331545815 | W79: 206.0578354 | X79: 32.47803898 | Y79: 0.0002331545815 | Z79: 23.29681212 | AA79: 3253.358921 | AB79: 9.909135372e-05 | AC79: 3396.137293 | AD79: 91.76710073 | AE79: 0.0001172960605 | AF79: 43.4715034 | AG79: 20173.82066 | AH79: 21597.43249
A80: 2004 | B80: 1 | C80: 4 | D80: 6 | E80: 0.006675736842 | F80: 0.01006909203 | G80: 0.0003855548346 | H80: 3.247803898e-05 | J80: 0.003330902341 | L80: 9.176710073e-05 | N80: 0.02058553118 | O80: 6675.736842 | P80: 8.270558483e-05 | Q80: 7738.122924 | R80: 10069.09203 | S80: 7.910632857e-05 | T80: 10557.28082 | U80: 385.5548346 | V80: 0.0002331545815 | W80: 206.0578354 | X80: 32.47803898 | Y80: 0.0002331545815 | Z80: 23.29681212 | AA80: 3330.902341 | AB80: 0.0001014531843 | AC80: 3477.083818 | AD80: 91.76710073 | AE80: 0.0001172960605 | AF80: 43.4715034 | AG80: 20585.53118 | AH80: 22045.31372
A81: 2004 | B81: 1 | C81: 4 | D81: 7 | E81: 0.007033295679 | F81: 0.0104518502 | G81: 0.0003855548346 | H81: 3.247803898e-05 | J81: 0.003277590101 | L81: 9.176710073e-05 | N81: 0.02127253596 | O81: 7033.295679 | P81: 8.713537488e-05 | Q81: 8152.584173 | R81: 10451.8502 | S81: 8.211341143e-05 | T81: 10958.59661 | U81: 385.5548346 | V81: 0.0002331545815 | W81: 206.0578354 | X81: 32.47803898 | Y81: 0.0002331545815 | Z81: 23.29681212 | AA81: 3277.590101 | AB81: 9.98293911e-05 | AC81: 3421.431894 | AD81: 91.76710073 | AE81: 0.0001172960605 | AF81: 43.4715034 | AG81: 21272.53596 | AH81: 22805.43882
A82: 2004 | B82: 1 | C82: 4 | D82: 8 | E82: 0.007792890504 | F82: 0.01082619785 | G82: 0.0003855548346 | H82: 3.247803898e-05 | J82: 0.003265095787 | L82: 9.176710073e-05 | N82: 0.02239398412 | O82: 7792.890504 | P82: 9.654598164e-05 | Q82: 9033.061979 | R82: 10826.19785 | S82: 8.505441822e-05 | T82: 11351.09409 | U82: 385.5548346 | V82: 0.0002331545815 | W82: 206.0578354 | X82: 32.47803898 | Y82: 0.0002331545815 | Z82: 23.29681212 | AA82: 3265.095787 | AB82: 9.944883717e-05 | AC82: 3408.389249 | AD82: 91.76710073 | AE82: 0.0001172960605 | AF82: 43.4715034 | AG82: 22393.98412 | AH82: 24065.37146
A83: 2004 | B83: 1 | C83: 4 | D83: 9 | E83: 0.008966760004 | F83: 0.01142138692 | G83: 0.0003855548346 | H83: 3.247803898e-05 | J83: 0.003313096219 | L83: 9.176710073e-05 | N83: 0.02421104312 | O83: 8966.760004 | P83: 0.00011108903 | Q83: 10393.74271 | R83: 11421.38692 | S83: 8.97304329e-05 | T83: 11975.14024 | U83: 385.5548346 | V83: 0.0002331545815 | W83: 206.0578354 | X83: 32.47803898 | Y83: 0.0002331545815 | Z83: 23.29681212 | AA83: 3313.096219 | AB83: 0.0001009108424 | AC83: 3458.49625 | AD83: 91.76710073 | AE83: 0.0001172960605 | AF83: 43.4715034 | AG83: 24211.04312 | AH83: 26100.20535
A84: 2004 | B84: 1 | C84: 4 | D84: 10 | E84: 0.01003906776 | F84: 0.0117081654 | G84: 0 | H84: 0 | J84: 0.003661251246 | L84: 9.176710073e-05 | N84: 0.02550025151 | O84: 10039.06776 | P84: 0.0001243738317 | Q84: 11636.69902 | R84: 11708.1654 | S84: 9.198346552e-05 | T84: 12275.82286 | U84: 0 | V84: 0 | W84: 0 | X84: 0 | Y84: 0 | Z84: 0 | AA84: 3661.251246 | AB84: 0.0001115150068 | AC84: 3821.930565 | AD84: 91.76710073 | AE84: 0.0001172960605 | AF84: 43.4715034 | AG84: 25500.25151 | AH84: 27777.92395
A85: 2004 | B85: 1 | C85: 4 | D85: 11 | E85: 0.0102865123 | F85: 0.01220127465 | G85: 0 | H85: 0 | J85: 0.004119572506 | L85: 9.176710073e-05 | N85: 0.02669912655 | O85: 10286.5123 | P85: 0.0001274394176 | Q85: 11923.52223 | R85: 12201.27465 | S85: 9.585750517e-05 | T85: 12792.83996 | U85: 0 | V85: 0 | W85: 0 | X85: 0 | Y85: 0 | Z85: 0 | AA85: 4119.572506 | AB85: 0.0001254746329 | AC85: 4300.365917 | AD85: 91.76710073 | AE85: 0.0001172960605 | AF85: 43.4715034 | AG85: 26699.12655 | AH85: 29060.1996
A86: 2004 | B86: 1 | C86: 4 | D86: 12 | E86: 0.01076960819 | F86: 0.01244148258 | G86: 0 | H86: 0 | J86: 0.003871886714 | L86: 9.176710073e-05 | N86: 0.02717474458 | O86: 10769.60819 | P86: 0.000133424484 | Q86: 12483.49867 | R86: 12441.48258 | S86: 9.774466317e-05 | T86: 13044.6941 | U86: 0 | V86: 0 | W86: 0 | X86: 0 | Y86: 0 | Z86: 0 | AA86: 3871.886714 | AB86: 0.0001179305774 | AC86: 4041.810075 | AD86: 91.76710073 | AE86: 0.0001172960605 | AF86: 43.4715034 | AG86: 27174.74458 | AH86: 29613.47435
A87: 2004 | B87: 1 | C87: 4 | D87: 13 | E87: 0.01101215742 | F87: 0.01247003346 | G87: 0 | H87: 0 | J87: 0.004114503006 | L87: 9.176710073e-05 | N87: 0.02768846098 | O87: 11012.15742 | P87: 0.0001364294221 | Q87: 12764.64752 | R87: 12470.03346 | S87: 9.796896895e-05 | T87: 13074.62925 | U87: 0 | V87: 0 | W87: 0 | X87: 0 | Y87: 0 | Z87: 0 | AA87: 4114.503006 | AB87: 0.0001253202252 | AC87: 4295.073934 | AD87: 91.76710073 | AE87: 0.0001172960605 | AF87: 43.4715034 | AG87: 27688.46098 | AH87: 30177.82221
A88: 2004 | B88: 1 | C88: 4 | D88: 14 | E88: 0.01056791587 | F88: 0.01257742322 | G88: 0 | H88: 0 | J88: 0.004334599648 | L88: 9.176710073e-05 | N88: 0.02757170584 | O88: 10567.91587 | P88: 0.0001309257215 | Q88: 12249.70876 | R88: 12577.42322 | S88: 9.881266068e-05 | T88: 13187.22568 | U88: 0 | V88: 0 | W88: 0 | X88: 0 | Y88: 0 | Z88: 0 | AA88: 4334.599648 | AB88: 0.0001320239658 | AC88: 4524.829836 | AD88: 91.76710073 | AE88: 0.0001172960605 | AF88: 43.4715034 | AG88: 27571.70584 | AH88: 30005.23578
A89: 2004 | B89: 1 | C89: 4 | D89: 15 | E89: 0.01017725187 | F89: 0.01254749428 | G89: 0 | H89: 0 | J89: 0.004590510289 | L89: 9.176710073e-05 | N89: 0.02740702354 | O89: 10177.25187 | P89: 0.0001260857921 | Q89: 11796.87394 | R89: 12547.49428 | S89: 9.857752841e-05 | T89: 13155.84567 | U89: 0 | V89: 0 | W89: 0 | X89: 0 | Y89: 0 | Z89: 0 | AA89: 4590.510289 | AB89: 0.0001398185352 | AC89: 4791.971487 | AD89: 91.76710073 | AE89: 0.0001172960605 | AF89: 43.4715034 | AG89: 27407.02354 | AH89: 29788.1626
A90: 2004 | B90: 1 | C90: 4 | D90: 16 | E90: 0.01074644001 | F90: 0.01275291591 | G90: 0 | H90: 0 | J90: 0.00428475886 | L90: 9.176710073e-05 | N90: 0.02787588188 | O90: 10746.44001 | P90: 0.0001331374538 | Q90: 12456.64347 | R90: 12752.91591 | S90: 0.000100191393 | T90: 13371.22694 | U90: 0 | V90: 0 | W90: 0 | X90: 0 | Y90: 0 | Z90: 0 | AA90: 4284.75886 | AB90: 0.0001305059067 | AC90: 4472.801713 | AD90: 91.76710073 | AE90: 0.0001172960605 | AF90: 43.4715034 | AG90: 27875.88188 | AH90: 30344.14363
A91: 2004 | B91: 1 | C91: 4 | D91: 17 | E91: 0.01209001837 | F91: 0.01254484949 | G91: 0 | H91: 0 | J91: 0.00456934106 | L91: 9.176710073e-05 | N91: 0.02929597603 | O91: 12090.01837 | P91: 0.0001497830223 | Q91: 14014.04078 | R91: 12544.84949 | S91: 9.855675003e-05 | T91: 13153.07265 | U91: 0 | V91: 0 | W91: 0 | X91: 0 | Y91: 0 | Z91: 0 | AA91: 4569.34106 | AB91: 0.0001391737593 | AC91: 4769.873216 | AD91: 91.76710073 | AE91: 0.0001172960605 | AF91: 43.4715034 | AG91: 29295.97603 | AH91: 31980.45815
A92: 2004 | B92: 1 | C92: 4 | D92: 18 | E92: 0.01384031048 | F92: 0.01259736281 | G92: 0.0003855548346 | H92: 3.247803898e-05 | J92: 0.00470324283 | L92: 9.176710073e-05 | N92: 0.03165071609 | O92: 13840.31048 | P92: 0.00017146736 | Q92: 16042.87681 | R92: 12597.36281 | S92: 9.896931309e-05 | T92: 13208.13202 | U92: 385.5548346 | V92: 0.0002331545815 | W92: 206.0578354 | X92: 32.47803898 | Y92: 0.0002331545815 | Z92: 23.29681212 | AA92: 4703.24283 | AB92: 0.0001432521619 | AC92: 4909.65146 | AD92: 91.76710073 | AE92: 0.0001172960605 | AF92: 43.4715034 | AG92: 31650.71609 | AH92: 34433.48644
A93: 2004 | B93: 1 | C93: 4 | D93: 19 | E93: 0.01459068693 | F93: 0.01234668027 | G93: 0.0003855548346 | H93: 3.247803898e-05 | J93: 0.004711733594 | L93: 9.176710073e-05 | N93: 0.03215890077 | O93: 14590.68693 | P93: 0.0001807637605 | Q93: 16912.66922 | R93: 12346.68027 | S93: 9.699986291e-05 | T93: 12945.29542 | U93: 385.5548346 | V93: 0.0002331545815 | W93: 206.0578354 | X93: 32.47803898 | Y93: 0.0002331545815 | Z93: 23.29681212 | AA93: 4711.733594 | AB93: 0.000143510775 | AC93: 4918.514853 | AD93: 91.76710073 | AE93: 0.0001172960605 | AF93: 43.4715034 | AG93: 32158.90077 | AH93: 35049.30564
A94: 2004 | B94: 1 | C94: 4 | D94: 20 | E94: 0.01402341577 | F94: 0.01202905844 | G94: 0.0003855548346 | H94: 3.247803898e-05 | J94: 0.004312337011 | L94: 9.176710073e-05 | N94: 0.03087461119 | O94: 14023.41577 | P94: 0.0001737358482 | Q94: 16255.12174 | R94: 12029.05844 | S94: 9.450451408e-05 | T94: 12612.27404 | U94: 385.5548346 | V94: 0.0002331545815 | W94: 206.0578354 | X94: 32.47803898 | Y94: 0.0002331545815 | Z94: 23.29681212 | AA94: 4312.337011 | AB94: 0.0001313458867 | AC94: 4501.590171 | AD94: 91.76710073 | AE94: 0.0001172960605 | AF94: 43.4715034 | AG94: 30874.61119 | AH94: 33641.8121
A95: 2004 | B95: 1 | C95: 4 | D95: 21 | E95: 0.01356812299 | F95: 0.01187509234 | G95: 0.0003855548346 | H95: 3.247803898e-05 | J95: 0.004163310782 | L95: 9.176710073e-05 | N95: 0.03011632609 | O95: 13568.12299 | P95: 0.000168095234 | Q95: 15727.37302 | R95: 11875.09234 | S95: 9.329490228e-05 | T95: 12450.84307 | U95: 385.5548346 | V95: 0.0002331545815 | W95: 206.0578354 | X95: 32.47803898 | Y95: 0.0002331545815 | Z95: 23.29681212 | AA95: 4163.310782 | AB95: 0.0001268068207 | AC95: 4346.02371 | AD95: 91.76710073 | AE95: 0.0001172960605 | AF95: 43.4715034 | AG95: 30116.32609 | AH95: 32797.06595
A96: 2004 | B96: 1 | C96: 4 | D96: 22 | E96: 0.01254629007 | F96: 0.01163233777 | G96: 0.0003855548346 | H96: 3.247803898e-05 | J96: 0.003848033228 | L96: 9.176710073e-05 | N96: 0.02853646104 | O96: 12546.29007 | P96: 0.0001554357642 | Q96: 14542.92418 | R96: 11632.33777 | S96: 9.138773695e-05 | T96: 12196.3188 | U96: 385.5548346 | V96: 0.0002331545815 | W96: 206.0578354 | X96: 32.47803898 | Y96: 0.0002331545815 | Z96: 23.29681212 | AA96: 3848.033228 | AB96: 0.0001172040439 | AC96: 4016.909744 | AD96: 91.76710073 | AE96: 0.0001172960605 | AF96: 43.4715034 | AG96: 28536.46104 | AH96: 31028.97888
A97: 2004 | B97: 1 | C97: 4 | D97: 23 | E97: 0.01103120012 | F97: 0.0113764949 | G97: 0.0003855548346 | H97: 3.247803898e-05 | J97: 0.003224901306 | L97: 9.176710073e-05 | N97: 0.0261423963 | O97: 11031.20012 | P97: 0.0001366653418 | Q97: 12786.72071 | R97: 11376.4949 | S97: 8.937774537e-05 | T97: 11928.07168 | U97: 385.5548346 | V97: 0.0002331545815 | W97: 206.0578354 | X97: 32.47803898 | Y97: 0.0002331545815 | Z97: 23.29681212 | AA97: 3224.901306 | AB97: 9.822458691e-05 | AC97: 3366.430775 | AD97: 91.76710073 | AE97: 0.0001172960605 | AF97: 43.4715034 | AG97: 26142.3963 | AH97: 28354.04931
A98: 2004 | B98: 1 | C98: 4 | D98: 24 | E98: 0.008668495563 | F98: 0.01139060787 | G98: 0.0003855548346 | H98: 3.247803898e-05 | J98: 0.002922566126 | L98: 9.176710073e-05 | N98: 0.02349146954 | O98: 8668.495563 | P98: 0.0001073938371 | Q98: 10048.01205 | R98: 11390.60787 | S98: 8.948862186e-05 | T98: 11942.8689 | U98: 385.5548346 | V98: 0.0002331545815 | W98: 206.0578354 | X98: 32.47803898 | Y98: 0.0002331545815 | Z98: 23.29681212 | AA98: 2922.566126 | AB98: 8.90160111e-05 | AC98: 3050.827177 | AD98: 91.76710073 | AE98: 0.0001172960605 | AF98: 43.4715034 | AG98: 23491.46954 | AH98: 25314.53428
A99: 2004 | B99: 1 | C99: 5 | D99: 1 | E99: 0.008309832451 | F99: 0.01190965651 | G99: 0.0003855548346 | H99: 3.247803898e-05 | J99: 0.003509498878 | L99: 9.176710073e-05 | N99: 0.02423878781 | O99: 8309.832451 | P99: 0.0001029503662 | Q99: 9632.270789 | R99: 11909.65651 | S99: 9.356645054e-05 | T99: 12487.08304 | U99: 385.5548346 | V99: 0.0002331545815 | W99: 206.0578354 | X99: 32.47803898 | Y99: 0.0002331545815 | Z99: 23.29681212 | AA99: 3509.498878 | AB99: 0.0001068929076 | AC99: 3663.518323 | AD99: 91.76710073 | AE99: 0.0001172960605 | AF99: 43.4715034 | AG99: 24238.78781 | AH99: 26055.6983
A100: 2004 | B100: 1 | C100: 5 | D100: 2 | E100: 0.007558543318 | F100: 0.01196350685 | G100: 0.0003855548346 | H100: 3.247803898e-05 | J100: 0.003574913406 | L100: 9.176710073e-05 | N100: 0.02360676355 | O100: 7558.543318 | P100: 9.364265854e-05 | Q100: 8761.420455 | R100: 11963.50685 | S100: 9.398951774e-05 | T100: 12543.54425 | U100: 385.5548346 | V100: 0.0002331545815 | W100: 206.0578354 | X100: 32.47803898 | Y100: 0.0002331545815 | Z100: 23.29681212 | AA100: 3574.913406 | AB100: 0.0001088853144 | AC100: 3731.803663 | AD100: 91.76710073 | AE100: 0.0001172960605 | AF100: 43.4715034 | AG100: 23606.76355 | AH100: 25309.59452
A101: 2004 | B101: 1 | C101: 5 | D101: 3 | E101: 0.007508707168 | F101: 0.01190385934 | G101: 0.0003855548346 | H101: 3.247803898e-05 | J101: 0.003474465953 | L101: 9.176710073e-05 | N101: 0.02339683243 | O101: 7508.707168 | P101: 9.302523935e-05 | Q101: 8703.653309 | R101: 11903.85934 | S101: 9.352090589e-05 | T101: 12481.0048 | U101: 385.5548346 | V101: 0.0002331545815 | W101: 206.0578354 | X101: 32.47803898 | Y101: 0.0002331545815 | Z101: 23.29681212 | AA101: 3474.465953 | AB101: 0.0001058258689 | AC101: 3626.947927 | AD101: 91.76710073 | AE101: 0.0001172960605 | AF101: 43.4715034 | AG101: 23396.83243 | AH101: 25084.43218
A102: 2004 | B102: 1 | C102: 5 | D102: 4 | E102: 0.007338462872 | F102: 0.0122671198 | G102: 0.0003855548346 | H102: 3.247803898e-05 | J102: 0.003351427541 | L102: 9.176710073e-05 | N102: 0.02346681019 | O102: 7338.462872 | P102: 9.09160858e-05 | Q102: 8506.316099 | R102: 12267.1198 | S102: 9.637480787e-05 | T102: 12861.87754 | U102: 385.5548346 | V102: 0.0002331545815 | W102: 206.0578354 | X102: 32.47803898 | Y102: 0.0002331545815 | Z102: 23.29681212 | AA102: 3351.427541 | AB102: 0.0001020783443 | AC102: 3498.509797 | AD102: 91.76710073 | AE102: 0.0001172960605 | AF102: 43.4715034 | AG102: 23466.81019 | AH102: 25139.52959
A103: 2004 | B103: 1 | C103: 5 | D103: 5 | E103: 0.00746808119 | F103: 0.01245101014 | G103: 0.0003855548346 | H103: 3.247803898e-05 | J103: 0.003369936233 | L103: 9.176710073e-05 | N103: 0.02379882753 | O103: 7468.08119 | P103: 9.252192483e-05 | Q103: 8656.562057 | R103: 12451.01014 | S103: 9.781951502e-05 | T103: 13054.6836 | U103: 385.5548346 | V103: 0.0002331545815 | W103: 206.0578354 | X103: 32.47803898 | Y103: 0.0002331545815 | Z103: 23.29681212 | AA103: 3369.936233 | AB103: 0.0001026420851 | AC103: 3517.830769 | AD103: 91.76710073 | AE103: 0.0001172960605 | AF103: 43.4715034 | AG103: 23798.82753 | AH103: 25501.90257
A104: 2004 | B104: 1 | C104: 5 | D104: 6 | E104: 0.008094262755 | F104: 0.01292921389 | G104: 0.0003855548346 | H104: 3.247803898e-05 | J104: 0.003563098741 | L104: 9.176710073e-05 | N104: 0.02509637536 | O104: 8094.262755 | P104: 0.0001002796771 | Q104: 9382.39503 | R104: 12929.21389 | S104: 0.0001015764519 | T104: 13556.07253 | U104: 385.5548346 | V104: 0.0002331545815 | W104: 206.0578354 | X104: 32.47803898 | Y104: 0.0002331545815 | Z104: 23.29681212 | AA104: 3563.098741 | AB104: 0.0001085254613 | AC104: 3719.470494 | AD104: 91.76710073 | AE104: 0.0001172960605 | AF104: 43.4715034 | AG104: 25096.37536 | AH104: 26930.7642
A105: 2004 | B105: 1 | C105: 5 | D105: 7 | E105: 0.009420860772 | F105: 0.01393367638 | G105: 0.0003855548346 | H105: 3.247803898e-05 | J105: 0.003949224409 | L105: 9.176710073e-05 | N105: 0.02781356153 | O105: 9420.860772 | P105: 0.0001167148763 | Q105: 10920.10971 | R105: 13933.67638 | S105: 0.0001094678625 | T105: 14609.23527 | U105: 385.5548346 | V105: 0.0002331545815 | W105: 206.0578354 | X105: 32.47803898 | Y105: 0.0002331545815 | Z105: 23.29681212 | AA105: 3949.224409 | AB105: 0.0001202861419 | AC105: 4122.541847 | AD105: 91.76710073 | AE105: 0.0001172960605 | AF105: 43.4715034 | AG105: 27813.56153 | AH105: 29924.71298
A106: 2004 | B106: 1 | C106: 5 | D106: 8 | E106: 0.01061392837 | F106: 0.01581376342 | G106: 0.0003855548346 | H106: 3.247803898e-05 | J106: 0.004331734522 | L106: 9.176710073e-05 | N106: 0.03126922628 | O106: 10613.92837 | P106: 0.0001314957695 | Q106: 12303.04375 | R106: 15813.76342 | S106: 0.0001242384876 | T106: 16580.47625 | U106: 385.5548346 | V106: 0.0002331545815 | W106: 206.0578354 | X106: 32.47803898 | Y106: 0.0002331545815 | Z106: 23.29681212 | AA106: 4331.734522 | AB106: 0.0001319366993 | AC106: 4521.838971 | AD106: 91.76710073 | AE106: 0.0001172960605 | AF106: 43.4715034 | AG106: 31269.22628 | AH106: 33678.18513
A107: 2004 | B107: 1 | C107: 5 | D107: 9 | E107: 0.01061234928 | F107: 0.01682450265 | G107: 0.0003855548346 | H107: 3.247803898e-05 | J107: 0.004612680257 | L107: 9.176710073e-05 | N107: 0.03255933216 | O107: 10612.34928 | P107: 0.0001314762062 | Q107: 12301.21336 | R107: 16824.50265 | S107: 0.0001321792105 | T107: 17640.22006 | U107: 385.5548346 | V107: 0.0002331545815 | W107: 206.0578354 | X107: 32.47803898 | Y107: 0.0002331545815 | Z107: 23.29681212 | AA107: 4612.680257 | AB107: 0.0001404937918 | AC107: 4815.114417 | AD107: 91.76710073 | AE107: 0.0001172960605 | AF107: 43.4715034 | AG107: 32559.33216 | AH107: 35029.37399
A108: 2004 | B108: 1 | C108: 5 | D108: 10 | E108: 0.0104357325 | F108: 0.01763005994 | G108: 0 | H108: 0 | J108: 0.005184919862 | L108: 9.176710073e-05 | N108: 0.0333424794 | O108: 10435.7325 | P108: 0.0001292881041 | Q108: 12096.48955 | R108: 17630.05994 | S108: 0.0001385079519 | T108: 18484.8339 | U108: 0 | V108: 0 | W108: 0 | X108: 0 | Y108: 0 | Z108: 0 | AA108: 5184.919862 | AB108: 0.0001579231621 | AC108: 5412.467586 | AD108: 91.76710073 | AE108: 0.0001172960605 | AF108: 43.4715034 | AG108: 33342.4794 | AH108: 36037.26254
A109: 2004 | B109: 1 | C109: 5 | D109: 11 | E109: 0.01081614259 | F109: 0.01780847504 | G109: 0 | H109: 0 | J109: 0.005356383274 | L109: 9.176710073e-05 | N109: 0.03407276801 | O109: 10816.14259 | P109: 0.0001340009979 | Q109: 12537.43862 | R109: 17808.47504 | S109: 0.0001399096437 | T109: 18671.89927 | U109: 0 | V109: 0 | W109: 0 | X109: 0 | Y109: 0 | Z109: 0 | AA109: 5356.383274 | AB109: 0.0001631456235 | AC109: 5591.455918 | AD109: 91.76710073 | AE109: 0.0001172960605 | AF109: 43.4715034 | AG109: 34072.76801 | AH109: 36844.26531
A110: 2004 | B110: 1 | C110: 5 | D110: 12 | E110: 0.01077815981 | F110: 0.01789758465 | G110: 0 | H110: 0 | J110: 0.005547196077 | L110: 9.176710073e-05 | N110: 0.03431470764 | O110: 10778.15981 | P110: 0.0001335304299 | Q110: 12493.41121 | R110: 17897.58465 | S110: 0.0001406097202 | T110: 18765.32926 | U110: 0 | V110: 0 | W110: 0 | X110: 0 | Y110: 0 | Z110: 0 | AA110: 5547.196077 | AB110: 0.000168957432 | AC110: 5790.642817 | AD110: 91.76710073 | AE110: 0.0001172960605 | AF110: 43.4715034 | AG110: 34314.70764 | AH110: 37092.85479
A111: 2004 | B111: 1 | C111: 5 | D111: 13 | E111: 0.01079706139 | F111: 0.01784156634 | G111: 0 | H111: 0 | J111: 0.005214328122 | L111: 9.176710073e-05 | N111: 0.03394472296 | O111: 10797.06139 | P111: 0.0001337646013 | Q111: 12515.32082 | R111: 17841.56634 | S111: 0.0001401696206 | T111: 18706.59496 | U111: 0 | V111: 0 | W111: 0 | X111: 0 | Y111: 0 | Z111: 0 | AA111: 5214.328122 | AB111: 0.0001588188838 | AC111: 5443.16647 | AD111: 91.76710073 | AE111: 0.0001172960605 | AF111: 43.4715034 | AG111: 33944.72296 | AH111: 36708.55376
A112: 2004 | B112: 1 | C112: 5 | D112: 14 | E112: 0.0107804119 | F112: 0.01780810345 | G112: 0 | H112: 0 | J112: 0.005053020758 | L112: 9.176710073e-05 | N112: 0.03373330321 | O112: 10780.4119 | P112: 0.000133558331 | Q112: 12496.0217 | R112: 17808.10345 | S112: 0.0001399067244 | T112: 18671.50966 | U112: 0 | V112: 0 | W112: 0 | X112: 0 | Y112: 0 | Z112: 0 | AA112: 5053.020758 | AB112: 0.0001539057569 | AC112: 5274.779898 | AD112: 91.76710073 | AE112: 0.0001172960605 | AF112: 43.4715034 | AG112: 33733.30321 | AH112: 36485.78277
A113: 2004 | B113: 1 | C113: 5 | D113: 15 | E113: 0.01067850121 | F113: 0.01777260735 | G113: 0 | H113: 0 | J113: 0.004999854112 | L113: 9.176710073e-05 | N113: 0.03354272977 | O113: 10678.50121 | P113: 0.0001322957613 | Q113: 12377.8928 | R113: 17772.60735 | S113: 0.0001396278545 | T113: 18634.29257 | U113: 0 | V113: 0 | W113: 0 | X113: 0 | Y113: 0 | Z113: 0 | AA113: 4999.854112 | AB113: 0.0001522863983 | AC113: 5219.279958 | AD113: 91.76710073 | AE113: 0.0001172960605 | AF113: 43.4715034 | AG113: 33542.72977 | AH113: 36274.93683
A114: 2004 | B114: 1 | C114: 5 | D114: 16 | E114: 0.01071339449 | F114: 0.01770287679 | G114: 0 | H114: 0 | J114: 0.005332463575 | L114: 9.176710073e-05 | N114: 0.03384050195 | O114: 10713.39449 | P114: 0.0001327280534 | Q114: 12418.33904 | R114: 17702.87679 | S114: 0.0001390800267 | T114: 18561.1812 | U114: 0 | V114: 0 | W114: 0 | X114: 0 | Y114: 0 | Z114: 0 | AA114: 5332.463575 | AB114: 0.0001624170733 | AC114: 5566.486468 | AD114: 91.76710073 | AE114: 0.0001172960605 | AF114: 43.4715034 | AG114: 33840.50195 | AH114: 36589.47822
A115: 2004 | B115: 1 | C115: 5 | D115: 17 | E115: 0.01248780393 | F115: 0.01752329981 | G115: 0 | H115: 0 | J115: 0.004983070227 | L115: 9.176710073e-05 | N115: 0.03508594107 | O115: 12487.80393 | P115: 0.0001547111805 | Q115: 14475.13048 | R115: 17523.29981 | S115: 0.0001376692068 | T115: 18372.89763 | U115: 0 | V115: 0 | W115: 0 | X115: 0 | Y115: 0 | Z115: 0 | AA115: 4983.070227 | AB115: 0.0001517751919 | AC115: 5201.759488 | AD115: 91.76710073 | AE115: 0.0001172960605 | AF115: 43.4715034 | AG115: 35085.94107 | AH115: 38093.2591
A116: 2004 | B116: 1 | C116: 5 | D116: 18 | E116: 0.0147699211 | F116: 0.01741349104 | G116: 0.0003855548346 | H116: 3.247803898e-05 | J116: 0.004527766278 | L116: 9.176710073e-05 | N116: 0.03722097839 | O116: 14769.9211 | P116: 0.0001829842894 | Q116: 17120.42696 | R116: 17413.49104 | S116: 0.0001368065105 | T116: 18257.7649 | U116: 385.5548346 | V116: 0.0002331545815 | W116: 206.0578354 | X116: 32.47803898 | Y116: 0.0002331545815 | Z116: 23.29681212 | AA116: 4527.766278 | AB116: 0.0001379074675 | AC116: 4726.473864 | AD116: 91.76710073 | AE116: 0.0001172960605 | AF116: 43.4715034 | AG116: 37220.97839 | AH116: 40377.49188
A117: 2004 | B117: 1 | C117: 5 | D117: 19 | E117: 0.01534261602 | F117: 0.01725323222 | G117: 0.0003855548346 | H117: 3.247803898e-05 | J117: 0.004528492746 | L117: 9.176710073e-05 | N117: 0.03763414096 | O117: 15342.61602 | P117: 0.0001900793966 | Q117: 17784.26135 | R117: 17253.23222 | S117: 0.0001355474608 | T117: 18089.73611 | U117: 385.5548346 | V117: 0.0002331545815 | W117: 206.0578354 | X117: 32.47803898 | Y117: 0.0002331545815 | Z117: 23.29681212 | AA117: 4528.492746 | AB117: 0.0001379295944 | AC117: 4727.232214 | AD117: 91.76710073 | AE117: 0.0001172960605 | AF117: 43.4715034 | AG117: 37634.14096 | AH117: 40874.05583
A118: 2004 | B118: 1 | C118: 5 | D118: 20 | E118: 0.0142591202 | F118: 0.0172011064 | G118: 0.0003855548346 | H118: 3.247803898e-05 | J118: 0.004659873807 | L118: 9.176710073e-05 | N118: 0.03662990039 | O118: 14259.1202 | P118: 0.0001766559862 | Q118: 16528.3365 | R118: 17201.1064 | S118: 0.0001351379421 | T118: 18035.08303 | U118: 385.5548346 | V118: 0.0002331545815 | W118: 206.0578354 | X118: 32.47803898 | Y118: 0.0002331545815 | Z118: 23.29681212 | AA118: 4659.873807 | AB118: 0.0001419312209 | AC118: 4864.379123 | AD118: 91.76710073 | AE118: 0.0001172960605 | AF118: 43.4715034 | AG118: 36629.90039 | AH118: 39700.6248
A119: 2004 | B119: 1 | C119: 5 | D119: 21 | E119: 0.0137646627 | F119: 0.01690882931 | G119: 0.0003855548346 | H119: 3.247803898e-05 | J119: 0.004449811925 | L119: 9.176710073e-05 | N119: 0.03563310392 | O119: 13764.6627 | P119: 0.0001705301611 | Q119: 15955.19034 | R119: 16908.82931 | S119: 0.0001328417104 | T119: 17728.63521 | U119: 385.5548346 | V119: 0.0002331545815 | W119: 206.0578354 | X119: 32.47803898 | Y119: 0.0002331545815 | Z119: 23.29681212 | AA119: 4449.811925 | AB119: 0.0001355331207 | AC119: 4645.098372 | AD119: 91.76710073 | AE119: 0.0001172960605 | AF119: 43.4715034 | AG119: 35633.10392 | AH119: 38601.75008
A120: 2004 | B120: 1 | C120: 5 | D120: 22 | E120: 0.01280008662 | F120: 0.01625095038 | G120: 0.0003855548346 | H120: 3.247803898e-05 | J120: 0.003492054952 | L120: 9.176710073e-05 | N120: 0.03305289193 | O120: 12800.08662 | P120: 0.0001585800452 | Q120: 14837.11028 | R120: 16250.95038 | S120: 0.0001276731821 | T120: 17038.85974 | U120: 385.5548346 | V120: 0.0002331545815 | W120: 206.0578354 | X120: 32.47803898 | Y120: 0.0002331545815 | Z120: 23.29681212 | AA120: 3492.054952 | AB120: 0.0001063615976 | AC120: 3645.308846 | AD120: 91.76710073 | AE120: 0.0001172960605 | AF120: 43.4715034 | AG120: 33052.89193 | AH120: 35794.10502
A121: 2004 | B121: 1 | C121: 5 | D121: 23 | E121: 0.01118522279 | F121: 0.01527178161 | G121: 0.0003855548346 | H121: 3.247803898e-05 | J121: 0.003202148386 | L121: 9.176710073e-05 | N121: 0.03016895277 | O121: 11185.22279 | P121: 0.0001385735259 | Q121: 12965.25476 | R121: 15271.78161 | S121: 0.0001199804879 | T121: 16012.21706 | U121: 385.5548346 | V121: 0.0002331545815 | W121: 206.0578354 | X121: 32.47803898 | Y121: 0.0002331545815 | Z121: 23.29681212 | AA121: 3202.148386 | AB121: 9.753157464e-05 | AC121: 3342.67931 | AD121: 91.76710073 | AE121: 0.0001172960605 | AF121: 43.4715034 | AG121: 30168.95277 | AH121: 32592.97729
A122: 2004 | B122: 1 | C122: 5 | D122: 24 | E122: 0.009188119755 | F122: 0.01438686117 | G122: 0.0003855548346 | H122: 3.247803898e-05 | J122: 0.002886826929 | L122: 9.176710073e-05 | N122: 0.02697160782 | O122: 9188.119755 | P122: 0.000113831452 | Q122: 10650.32996 | R122: 14386.86117 | S122: 0.0001130282416 | T122: 15084.39222 | U122: 385.5548346 | V122: 0.0002331545815 | W122: 206.0578354 | X122: 32.47803898 | Y122: 0.0002331545815 | Z122: 23.29681212 | AA122: 2886.826929 | AB122: 8.79274606e-05 | AC122: 3013.519513 | AD122: 91.76710073 | AE122: 0.0001172960605 | AF122: 43.4715034 | AG122: 26971.60782 | AH122: 29021.06785
A123: 2004 | B123: 1 | C123: 6 | D123: 1 | E123: 0.008018766641 | F123: 0.01393005017 | G123: 0.0003855548346 | H123: 3.247803898e-05 | J123: 0.00298314225 | L123: 9.176710073e-05 | N123: 0.02544175903 | O123: 8018.766641 | P123: 9.934435708e-05 | Q123: 9294.884359 | R123: 13930.05017 | S123: 0.0001094393737 | T123: 14605.43325 | U123: 385.5548346 | V123: 0.0002331545815 | W123: 206.0578354 | X123: 32.47803898 | Y123: 0.0002331545815 | Z123: 23.29681212 | AA123: 2983.14225 | AB123: 9.086104887e-05 | AC123: 3114.061772 | AD123: 91.76710073 | AE123: 0.0001172960605 | AF123: 43.4715034 | AG123: 25441.75903 | AH123: 27287.20553
A124: 2004 | B124: 1 | C124: 6 | D124: 2 | E124: 0.007400544522 | F124: 0.01381160128 | G124: 0.0003855548346 | H124: 3.247803898e-05 | J124: 0.0030966794 | L124: 9.176710073e-05 | N124: 0.02481862517 | O124: 7400.544522 | P124: 9.168521426e-05 | Q124: 8578.277509 | R124: 13811.60128 | S124: 0.0001085087976 | T124: 14481.2415 | U124: 385.5548346 | V124: 0.0002331545815 | W124: 206.0578354 | X124: 32.47803898 | Y124: 0.0002331545815 | Z124: 23.29681212 | AA124: 3096.6794 | AB124: 9.431918249e-05 | AC124: 3232.581664 | AD124: 91.76710073 | AE124: 0.0001172960605 | AF124: 43.4715034 | AG124: 24818.62517 | AH124: 26564.92682
A125: 2004 | B125: 1 | C125: 6 | D125: 3 | E125: 0.007409694438 | F125: 0.01362633294 | G125: 0.0003855548346 | H125: 3.247803898e-05 | J125: 0.002875916902 | L125: 9.176710073e-05 | N125: 0.02442174426 | O125: 7409.694438 | P125: 9.179857241e-05 | Q125: 8588.883556 | R125: 13626.33294 | S125: 0.0001070532644 | T125: 14286.99063 | U125: 385.5548346 | V125: 0.0002331545815 | W125: 206.0578354 | X125: 32.47803898 | Y125: 0.0002331545815 | Z125: 23.29681212 | AA125: 2875.916902 | AB125: 8.759516117e-05 | AC125: 3002.130684 | AD125: 91.76710073 | AE125: 0.0001172960605 | AF125: 43.4715034 | AG125: 24421.74426 | AH125: 26150.83102
A126: 2004 | B126: 1 | C126: 6 | D126: 4 | E126: 0.007241047949 | F126: 0.01343490834 | G126: 0.0003855548346 | H126: 3.247803898e-05 | J126: 0.00310895354 | L126: 9.176710073e-05 | N126: 0.0242947098 | O126: 7241.047949 | P126: 8.970921406e-05 | Q126: 8393.398429 | R126: 13434.90834 | S126: 0.0001055493654 | T126: 14086.28502 | U126: 385.5548346 | V126: 0.0002331545815 | W126: 206.0578354 | X126: 32.47803898 | Y126: 0.0002331545815 | Z126: 23.29681212 | AA126: 3108.95354 | AB126: 9.469303031e-05 | AC126: 3245.394472 | AD126: 91.76710073 | AE126: 0.0001172960605 | AF126: 43.4715034 | AG126: 24294.7098 | AH126: 25997.90407
A127: 2004 | B127: 1 | C127: 6 | D127: 5 | E127: 0.007685021082 | F127: 0.01350687876 | G127: 0.0003855548346 | H127: 3.247803898e-05 | J127: 0.002862862188 | L127: 9.176710073e-05 | N127: 0.024564562 | O127: 7685.021082 | P127: 9.52095893e-05 | Q127: 8908.026067 | R127: 13506.87876 | S127: 0.0001061147903 | T127: 14161.74485 | U127: 385.5548346 | V127: 0.0002331545815 | W127: 206.0578354 | X127: 32.47803898 | Y127: 0.0002331545815 | Z127: 23.29681212 | AA127: 2862.862188 | AB127: 8.719753848e-05 | AC127: 2988.503045 | AD127: 91.76710073 | AE127: 0.0001172960605 | AF127: 43.4715034 | AG127: 24564.562 | AH127: 26331.10011
A128: 2004 | B128: 1 | C128: 6 | D128: 6 | E128: 0.008033222737 | F128: 0.01411206983 | G128: 0.0003855548346 | H128: 3.247803898e-05 | J128: 0.003158741942 | L128: 9.176710073e-05 | N128: 0.02581383449 | O128: 8033.222737 | P128: 9.95234534e-05 | Q128: 9311.641019 | R128: 14112.06983 | S128: 0.0001108693843 | T128: 14796.27794 | U128: 385.5548346 | V128: 0.0002331545815 | W128: 206.0578354 | X128: 32.47803898 | Y128: 0.0002331545815 | Z128: 23.29681212 | AA128: 3158.741942 | AB128: 9.620949384e-05 | AC128: 3297.36791 | AD128: 91.76710073 | AE128: 0.0001172960605 | AF128: 43.4715034 | AG128: 25813.83449 | AH128: 27678.11302
A129: 2004 | B129: 1 | C129: 6 | D129: 7 | E129: 0.009206774477 | F129: 0.01499596292 | G129: 0.0003855548346 | H129: 3.247803898e-05 | J129: 0.003558505068 | L129: 9.176710073e-05 | N129: 0.02827104244 | O129: 9206.774477 | P129: 0.000114062565 | Q129: 10671.95342 | R129: 14995.96292 | S129: 0.0001178135592 | T129: 15723.0256 | U129: 385.5548346 | V129: 0.0002331545815 | W129: 206.0578354 | X129: 32.47803898 | Y129: 0.0002331545815 | Z129: 23.29681212 | AA129: 3558.505068 | AB129: 0.0001083855465 | AC129: 3714.675222 | AD129: 91.76710073 | AE129: 0.0001172960605 | AF129: 43.4715034 | AG129: 28271.04244 | AH129: 30382.4804
A130: 2004 | B130: 1 | C130: 6 | D130: 8 | E130: 0.01088339315 | F130: 0.01637135233 | G130: 0.0003855548346 | H130: 3.247803898e-05 | J130: 0.003902539576 | L130: 9.176710073e-05 | N130: 0.03166708503 | O130: 10883.39315 | P130: 0.0001348341639 | Q130: 12615.39153 | R130: 16371.35233 | S130: 0.0001286191022 | T130: 17165.09925 | U130: 385.5548346 | V130: 0.0002331545815 | W130: 206.0578354 | X130: 32.47803898 | Y130: 0.0002331545815 | Z130: 23.29681212 | AA130: 3902.539576 | AB130: 0.0001188642074 | AC130: 4073.808182 | AD130: 91.76710073 | AE130: 0.0001172960605 | AF130: 43.4715034 | AG130: 31667.08503 | AH130: 34127.12511
A131: 2004 | B131: 1 | C131: 6 | D131: 9 | E131: 0.0104749803 | F131: 0.01750004441 | G131: 0.0003855548346 | H131: 3.247803898e-05 | J131: 0.004268423334 | L131: 9.176710073e-05 | N131: 0.03275324802 | O131: 10474.9803 | P131: 0.0001297743443 | Q131: 12141.98329 | R131: 17500.04441 | S131: 0.0001374865042 | T131: 18348.51472 | U131: 385.5548346 | V131: 0.0002331545815 | W131: 206.0578354 | X131: 32.47803898 | Y131: 0.0002331545815 | Z131: 23.29681212 | AA131: 4268.423334 | AB131: 0.0001300083565 | AC131: 4455.749279 | AD131: 91.76710073 | AE131: 0.0001172960605 | AF131: 43.4715034 | AG131: =O131+R131+U131+X131+AA131+AD131 -> 32753.24802 | AH131: =Q131+T131+W131+Z131+AC131+AF131 -> 35219.07344
A132: 2004 | B132: 1 | C132: 6 | D132: 10 | E132: 0.01000809666 | F132: 0.0180397517 | G132: 0 | H132: 0 | J132: 0.005134537428 | L132: 9.176710073e-05 | N132: 0.03327415289 | O132: =E132*1000000 -> 10008.09666 | P132: =O132/$O$8787 -> 0.0001239901312 | Q132: =P132*$Q$8787 -> 11600.79913 | R132: =F132*1000000 -> 18039.7517 | S132: =R132/$R$8787 -> 0.0001417266345 | T132: =S132*$T$8787 -> 18914.38912 | U132: =G132*1000000 -> 0 | V132: =U132/$U$8787 -> 0 | W132: =V132*$W$8787 -> 0 | X132: =H132*1000000 -> 0 | Y132: =X132/$X$8787 -> 0 | Z132: =Y132*$Z$8787 -> 0 | AA132: =J132*1000000 -> 5134.537428 | AB132: =AA132/$AA$8787 -> 0.0001563886054 | AC132: =AB132*$AC$8787 -> 5359.874046 | AD132: =L132*1000000 -> 91.76710073 | AE132: =AD132/$AD$8787 -> 0.0001172960605 | AF132: =AE132*$AF$8787 -> 43.4715034 | AG132: 33274.15289 | AH132: 35918.5338
A133: 2004 | B133: 1 | C133: 6 | D133: 11 | E133: 0.009753971702 | F133: 0.01845670786 | G133: 0 | H133: 0 | J133: 0.005644451245 | L133: 9.176710073e-05 | N133: 0.03394689791 | O133: 9753.971702 | P133: 0.0001208417817 | Q133: 11306.23238 | R133: 18456.70786 | S133: 0.0001450023888 | T133: 19351.56094 | U133: 0 | V133: 0 | W133: 0 | X133: 0 | Y133: 0 | Z133: 0 | AA133: 5644.451245 | AB133: 0.0001719196463 | AC133: 5892.16617 | AD133: 91.76710073 | AE133: 0.0001172960605 | AF133: 43.4715034 | AG133: 33946.89791 | AH133: 36593.43099
A134: 2004 | B134: 1 | C134: 6 | D134: 12 | E134: 0.01007803572 | F134: 0.01845561445 | G134: 0 | H134: 0 | J134: 0.005648455059 | L134: 9.176710073e-05 | N134: 0.03427387233 | O134: 10078.03572 | P134: 0.000124856605 | Q134: 11681.8684 | R134: 18455.61445 | S134: 0.0001449937985 | T134: 19350.41451 | U134: 0 | V134: 0 | W134: 0 | X134: 0 | Y134: 0 | Z134: 0 | AA134: 5648.455059 | AB134: 0.0001720415951 | AC134: 5896.345697 | AD134: 91.76710073 | AE134: 0.0001172960605 | AF134: 43.4715034 | AG134: 34273.87233 | AH134: 36972.10011
A135: 2004 | B135: 1 | C135: 6 | D135: 13 | E135: 0.01014687852 | F135: 0.01807593612 | G135: 0 | H135: 0 | J135: 0.005219649814 | L135: 9.176710073e-05 | N135: 0.03353423155 | O135: 10146.87852 | P135: 0.0001257094973 | Q135: 11761.66694 | R135: 18075.93612 | S135: 0.000142010912 | T135: 18952.32789 | U135: 0 | V135: 0 | W135: 0 | X135: 0 | Y135: 0 | Z135: 0 | AA135: 5219.649814 | AB135: 0.0001589809728 | AC135: 5448.721712 | AD135: 91.76710073 | AE135: 0.0001172960605 | AF135: 43.4715034 | AG135: 33534.23155 | AH135: 36206.18805
A136: 2004 | B136: 1 | C136: 6 | D136: 14 | E136: 0.009723159503 | F136: 0.01812157311 | G136: 0 | H136: 0 | J136: 0.005460177502 | L136: 9.176710073e-05 | N136: 0.03339667722 | O136: 9723.159503 | P136: 0.0001204600499 | Q136: 11270.51668 | R136: 18121.57311 | S136: 0.0001423694523 | T136: 19000.17755 | U136: 0 | V136: 0 | W136: 0 | X136: 0 | Y136: 0 | Z136: 0 | AA136: 5460.177502 | AB136: 0.0001663070056 | AC136: 5699.805306 | AD136: 91.76710073 | AE136: 0.0001172960605 | AF136: 43.4715034 | AG136: 33396.67722 | AH136: 36013.97104
A137: 2004 | B137: 1 | C137: 6 | D137: 15 | E137: 0.00935130738 | F137: 0.01807638258 | G137: 0 | H137: 0 | J137: 0.005543480544 | L137: 9.176710073e-05 | N137: 0.0330629376 | O137: 9351.30738 | P137: 0.0001158531806 | Q137: 10839.48749 | R137: 18076.38258 | S137: 0.0001420144196 | T137: 18952.79601 | U137: 0 | V137: 0 | W137: 0 | X137: 0 | Y137: 0 | Z137: 0 | AA137: 5543.480544 | AB137: 0.0001688442637 | AC137: 5786.764223 | AD137: 91.76710073 | AE137: 0.0001172960605 | AF137: 43.4715034 | AG137: 33062.9376 | AH137: 35622.51922
A138: 2004 | B138: 1 | C138: 6 | D138: 16 | E138: 0.0100751244 | F138: 0.01796130726 | G138: 0 | H138: 0 | J138: 0.005545845545 | L138: 9.176710073e-05 | N138: 0.0336740443 | O138: 10075.1244 | P138: 0.0001248205367 | Q138: 11678.49376 | R138: 17961.30726 | S138: 0.0001411103474 | T138: 18832.14139 | U138: 0 | V138: 0 | W138: 0 | X138: 0 | Y138: 0 | Z138: 0 | AA138: 5545.845545 | AB138: 0.0001689162973 | AC138: 5789.233016 | AD138: 91.76710073 | AE138: 0.0001172960605 | AF138: 43.4715034 | AG138: 33674.0443 | AH138: 36343.33966
A139: 2004 | B139: 1 | C139: 6 | D139: 17 | E139: 0.01152137462 | F139: 0.01778779215 | G139: 0 | H139: 0 | J139: 0.005589280822 | L139: 9.176710073e-05 | N139: 0.03499021469 | O139: 11521.37462 | P139: 0.0001427381049 | Q139: 13354.90226 | R139: 17787.79215 | S139: 0.0001397471517 | T139: 18650.21359 | U139: 0 | V139: 0 | W139: 0 | X139: 0 | Y139: 0 | Z139: 0 | AA139: 5589.280822 | AB139: 0.0001702392562 | AC139: 5834.574513 | AD139: 91.76710073 | AE139: 0.0001172960605 | AF139: 43.4715034 | AG139: 34990.21469 | AH139: 37883.16187
A140: 2004 | B140: 1 | C140: 6 | D140: 18 | E140: 0.01373045513 | F140: 0.01776524774 | G140: 0.0003855548346 | H140: 3.247803898e-05 | J140: 0.005365253614 | L140: 9.176710073e-05 | N140: 0.03737075646 | O140: 13730.45513 | P140: 0.000170106364 | Q140: 15915.53893 | R140: 17765.24774 | S140: 0.0001395700348 | T140: 18626.57614 | U140: 385.5548346 | V140: 0.0002331545815 | W140: 206.0578354 | X140: 32.47803898 | Y140: 0.0002331545815 | Z140: 23.29681212 | AA140: 5365.253614 | AB140: 0.0001634157978 | AC140: 5600.715546 | AD140: 91.76710073 | AE140: 0.0001172960605 | AF140: 43.4715034 | AG140: 37370.75646 | AH140: 40415.65677
A141: 2004 | B141: 1 | C141: 6 | D141: 19 | E141: 0.01448199591 | F141: 0.0176151606 | G141: 0.0003855548346 | H141: 3.247803898e-05 | J141: 0.005167442491 | L141: 9.176710073e-05 | N141: 0.03777439898 | O141: 14481.99591 | P141: 0.0001794171894 | Q141: 16786.68096 | R141: 17615.1606 | S141: 0.0001383908975 | T141: 18469.21219 | U141: 385.5548346 | V141: 0.0002331545815 | W141: 206.0578354 | X141: 32.47803898 | Y141: 0.0002331545815 | Z141: 23.29681212 | AA141: 5167.442491 | AB141: 0.0001573908333 | AC141: 5394.223195 | AD141: 91.76710073 | AE141: 0.0001172960605 | AF141: 43.4715034 | AG141: 37774.39898 | AH141: 40922.9425
A142: 2004 | B142: 1 | C142: 6 | D142: 20 | E142: 0.01403638221 | F142: 0.01740350347 | G142: 0.0003855548346 | H142: 3.247803898e-05 | J142: 0.004698715105 | L142: 9.176710073e-05 | N142: 0.03664840076 | O142: 14036.38221 | P142: 0.0001738964891 | Q142: 16270.15167 | R142: 17403.50347 | S142: 0.0001367280446 | T142: 18247.2931 | U142: 385.5548346 | V142: 0.0002331545815 | W142: 206.0578354 | X142: 32.47803898 | Y142: 0.0002331545815 | Z142: 23.29681212 | AA142: 4698.715105 | AB142: 0.0001431142557 | AC142: 4904.925029 | AD142: 91.76710073 | AE142: 0.0001172960605 | AF142: 43.4715034 | AG142: 36648.40076 | AH142: 39695.19594
A143: 2004 | B143: 1 | C143: 6 | D143: 21 | E143: 0.01371282836 | F143: 0.01706091507 | G143: 0.0003855548346 | H143: 3.247803898e-05 | J143: 0.004565829728 | L143: 9.176710073e-05 | N143: 0.03584937313 | O143: 13712.82836 | P143: 0.0001698879863 | Q143: 15895.10701 | R143: 17060.91507 | S143: 0.0001340365496 | T143: 17888.09467 | U143: 385.5548346 | V143: 0.0002331545815 | W143: 206.0578354 | X143: 32.47803898 | Y143: 0.0002331545815 | Z143: 23.29681212 | AA143: 4565.829728 | AB143: 0.0001390668105 | AC143: 4766.207784 | AD143: 91.76710073 | AE143: 0.0001172960605 | AF143: 43.4715034 | AG143: 35849.37313 | AH143: 38822.23562
A144: 2004 | B144: 1 | C144: 6 | D144: 22 | E144: 0.01300291359 | F144: 0.01637338734 | G144: 0.0003855548346 | H144: 3.247803898e-05 | J144: 0.003903698945 | L144: 9.176710073e-05 | N144: 0.03378979985 | O144: 13002.91359 | P144: 0.0001610928649 | Q144: 15072.21542 | R144: 16373.38734 | S144: 0.0001286350899 | T144: 17167.23292 | U144: 385.5548346 | V144: 0.0002331545815 | W144: 206.0578354 | X144: 32.47803898 | Y144: 0.0002331545815 | Z144: 23.29681212 | AA144: 3903.698945 | AB144: 0.0001188995197 | AC144: 4075.018432 | AD144: 91.76710073 | AE144: 0.0001172960605 | AF144: 43.4715034 | AG144: 33789.79985 | AH144: 36587.29292
A145: 2004 | B145: 1 | C145: 6 | D145: 23 | E145: 0.01163708014 | F145: 0.01533210008 | G145: 0.0003855548346 | H145: 3.247803898e-05 | J145: 0.003061355003 | L145: 9.176710073e-05 | N145: 0.0305403352 | O145: 11637.08014 | P145: 0.0001441715786 | Q145: 13489.02132 | R145: 15332.10008 | S145: 0.000120454371 | T145: 16075.46 | U145: 385.5548346 | V145: 0.0002331545815 | W145: 206.0578354 | X145: 32.47803898 | Y145: 0.0002331545815 | Z145: 23.29681212 | AA145: 3061.355003 | AB145: 9.324326608e-05 | AC145: 3195.707005 | AD145: 91.76710073 | AE145: 0.0001172960605 | AF145: 43.4715034 | AG145: 30540.3352 | AH145: 33033.01448
A146: 2004 | B146: 1 | C146: 6 | D146: 24 | E146: 0.00980905895 | F146: 0.01447192322 | G146: 0.0003855548346 | H146: 3.247803898e-05 | J146: 0.002706040037 | L146: 9.176710073e-05 | N146: 0.02749682218 | O146: 9809.05895 | P146: 0.0001215242566 | Q146: 11370.08629 | R146: 14471.92322 | S146: 0.0001136965191 | T146: 15173.57842 | U146: 385.5548346 | V146: 0.0002331545815 | W146: 206.0578354 | X146: 32.47803898 | Y146: 0.0002331545815 | Z146: 23.29681212 | AA146: 2706.040037 | AB146: 8.242102301e-05 | AC146: 2824.798527 | AD146: 91.76710073 | AE146: 0.0001172960605 | AF146: 43.4715034 | AG146: 27496.82218 | AH146: 29641.28939
A147: 2004 | B147: 1 | C147: 7 | D147: 1 | E147: 0.008234463618 | F147: 0.01382649986 | G147: 0.0003855548346 | H147: 3.247803898e-05 | J147: 0.00306741808 | L147: 9.176710073e-05 | N147: 0.02563818153 | O147: 8234.463618 | P147: 0.0001020166231 | Q147: 9544.907655 | R147: 13826.49986 | S147: 0.0001086258461 | T147: 14496.86242 | U147: 385.5548346 | V147: 0.0002331545815 | W147: 206.0578354 | X147: 32.47803898 | Y147: 0.0002331545815 | Z147: 23.29681212 | AA147: 3067.41808 | AB147: 9.34279363e-05 | AC147: 3202.036169 | AD147: 91.76710073 | AE147: 0.0001172960605 | AF147: 43.4715034 | AG147: 25638.18153 | AH147: 27516.63239
A148: 2004 | B148: 1 | C148: 7 | D148: 2 | E148: 0.007598415053 | F148: 0.01374672577 | G148: 0.0003855548346 | H148: 3.247803898e-05 | J148: 0.003155295907 | L148: 9.176710073e-05 | N148: 0.02501023671 | O148: 7598.415053 | P148: 9.413662874e-05 | Q148: 8807.637433 | R148: 13746.72577 | S148: 0.0001079991128 | T148: 14413.22058 | U148: 385.5548346 | V148: 0.0002331545815 | W148: 206.0578354 | X148: 32.47803898 | Y148: 0.0002331545815 | Z148: 23.29681212 | AA148: 3155.295907 | AB148: 9.610453395e-05 | AC148: 3293.770642 | AD148: 91.76710073 | AE148: 0.0001172960605 | AF148: 43.4715034 | AG148: 25010.23671 | AH148: 26787.4548
A149: 2004 | B149: 1 | C149: 7 | D149: 3 | E149: 0.007606681896 | F149: 0.01361740716 | G149: 0.0003855548346 | H149: 3.247803898e-05 | J149: 0.002876401499 | L149: 9.176710073e-05 | N149: 0.02461029053 | O149: 7606.681896 | P149: 9.423904651e-05 | Q149: 8817.219872 | R149: 13617.40716 | S149: 0.0001069831403 | T149: 14277.6321 | U149: 385.5548346 | V149: 0.0002331545815 | W149: 206.0578354 | X149: 32.47803898 | Y149: 0.0002331545815 | Z149: 23.29681212 | AA149: 2876.401499 | AB149: 8.760992111e-05 | AC149: 3002.636548 | AD149: 91.76710073 | AE149: 0.0001172960605 | AF149: 43.4715034 | AG149: 24610.29053 | AH149: 26370.31467
A150: 2004 | B150: 1 | C150: 7 | D150: 4 | E150: 0.007397923209 | F150: 0.01356015707 | G150: 0.0003855548346 | H150: 3.247803898e-05 | J150: 0.003014396321 | L150: 9.176710073e-05 | N150: 0.02448227657 | O150: 7397.923209 | P150: 9.165273886e-05 | Q150: 8575.239037 | R150: 13560.15707 | S150: 0.0001065333635 | T150: 14217.6063 | U150: 385.5548346 | V150: 0.0002331545815 | W150: 206.0578354 | X150: 32.47803898 | Y150: 0.0002331545815 | Z150: 23.29681212 | AA150: 3014.396321 | AB150: 9.181299062e-05 | AC150: 3146.687473 | AD150: 91.76710073 | AE150: 0.0001172960605 | AF150: 43.4715034 | AG150: 24482.27657 | AH150: 26212.35896
A151: 2004 | B151: 1 | C151: 7 | D151: 5 | E151: 0.007857250943 | F151: 0.01362351608 | G151: 0.0003855548346 | H151: 3.247803898e-05 | J151: 0.002763643471 | L151: 9.176710073e-05 | N151: 0.02475421046 | O151: 7857.250943 | P151: 9.734334197e-05 | Q151: 9107.664827 | R151: 13623.51608 | S151: 0.0001070311341 | T151: 14284.03719 | U151: 385.5548346 | V151: 0.0002331545815 | W151: 206.0578354 | X151: 32.47803898 | Y151: 0.0002331545815 | Z151: 23.29681212 | AA151: 2763.643471 | AB151: 8.417551809e-05 | AC151: 2884.92997 | AD151: 91.76710073 | AE151: 0.0001172960605 | AF151: 43.4715034 | AG151: 24754.21046 | AH151: 26549.45814
A152: 2004 | B152: 1 | C152: 7 | D152: 6 | E152: 0.008240536896 | F152: 0.0140806085 | G152: 0.0003855548346 | H152: 3.247803898e-05 | J152: 0.003182183412 | L152: 9.176710073e-05 | N152: 0.02601312878 | O152: 8240.536896 | P152: 0.0001020918648 | Q152: 9551.947442 | R152: 14080.6085 | S152: 0.000110622213 | T152: 14763.29124 | U152: 385.5548346 | V152: 0.0002331545815 | W152: 206.0578354 | X152: 32.47803898 | Y152: 0.0002331545815 | Z152: 23.29681212 | AA152: 3182.183412 | AB152: 9.692347809e-05 | AC152: 3321.838144 | AD152: 91.76710073 | AE152: 0.0001172960605 | AF152: 43.4715034 | AG152: 26013.12878 | AH152: 27909.90298
A153: 2004 | B153: 1 | C153: 7 | D153: 7 | E153: 0.009426760222 | F153: 0.01496981565 | G153: 0.0003855548346 | H153: 3.247803898e-05 | J153: 0.003582931645 | L153: 9.176710073e-05 | N153: 0.02848930749 | O153: 9426.760222 | P153: 0.0001167879645 | Q153: 10926.948 | R153: 14969.81565 | S153: 0.0001176081371 | T153: 15695.61061 | U153: 385.5548346 | V153: 0.0002331545815 | W153: 206.0578354 | X153: 32.47803898 | Y153: 0.0002331545815 | Z153: 23.29681212 | AA153: 3582.931645 | AB153: 0.0001091295352 | AC153: 3740.173794 | AD153: 91.76710073 | AE153: 0.0001172960605 | AF153: 43.4715034 | AG153: 28489.30749 | AH153: 30635.55856
A154: 2004 | B154: 1 | C154: 7 | D154: 8 | E154: 0.01109767635 | F154: 0.01645834445 | G154: 0.0003855548346 | H154: 3.247803898e-05 | J154: 0.003845747345 | L154: 9.176710073e-05 | N154: 0.03191156812 | O154: 11097.67635 | P154: 0.0001374889146 | Q154: 12863.77606 | R154: 16458.34445 | S154: 0.0001293025429 | T154: 17256.30909 | U154: 385.5548346 | V154: 0.0002331545815 | W154: 206.0578354 | X154: 32.47803898 | Y154: 0.0002331545815 | Z154: 23.29681212 | AA154: 3845.747345 | AB154: 0.0001171344201 | AC154: 4014.523542 | AD154: 91.76710073 | AE154: 0.0001172960605 | AF154: 43.4715034 | AG154: 31911.56812 | AH154: 34407.43484
A155: 2004 | B155: 1 | C155: 7 | D155: 9 | E155: 0.01074612782 | F155: 0.01731789987 | G155: 0.0003855548346 | H155: 3.247803898e-05 | J155: 0.004432292142 | L155: 9.176710073e-05 | N155: 0.03300611981 | O155: 10746.12782 | P155: 0.0001331335862 | Q155: 12456.28161 | R155: 17317.89987 | S155: 0.0001360555126 | T155: 18157.5391 | U155: 385.5548346 | V155: 0.0002331545815 | W155: 206.0578354 | X155: 32.47803898 | Y155: 0.0002331545815 | Z155: 23.29681212 | AA155: 4432.292142 | AB155: 0.0001349995003 | AC155: 4626.809708 | AD155: 91.76710073 | AE155: 0.0001172960605 | AF155: 43.4715034 | AG155: 33006.11981 | AH155: 35513.45656
A156: 2004 | B156: 1 | C156: 7 | D156: 10 | E156: 0.01021840691 | F156: 0.01810070796 | G156: 0 | H156: 0 | J156: 0.005120164034 | L156: 9.176710073e-05 | N156: 0.03353104601 | O156: 10218.40691 | P156: 0.0001265956612 | Q156: 11844.57846 | R156: 18100.70796 | S156: 0.0001422055283 | T156: 18978.30077 | U156: 0 | V156: 0 | W156: 0 | X156: 0 | Y156: 0 | Z156: 0 | AA156: 5120.164034 | AB156: 0.0001559508181 | AC156: 5344.869854 | AD156: 91.76710073 | AE156: 0.0001172960605 | AF156: 43.4715034 | AG156: 33531.04601 | AH156: 36211.22059
A157: 2004 | B157: 1 | C157: 7 | D157: 11 | E157: 0.009990323821 | F157: 0.01838026909 | G157: 0 | H157: 0 | J157: 0.005746623165 | L157: 9.176710073e-05 | N157: 0.03420898318 | O157: 9990.323821 | P157: 0.0001237699439 | Q157: 11580.1979 | R157: 18380.26909 | S157: 0.0001444018589 | T157: 19271.41612 | U157: 0 | V157: 0 | W157: 0 | X157: 0 | Y157: 0 | Z157: 0 | AA157: 5746.623165 | AB157: 0.0001750316158 | AC157: 5998.822053 | AD157: 91.76710073 | AE157: 0.0001172960605 | AF157: 43.4715034 | AG157: 34208.98318 | AH157: 36893.90757
A158: 2004 | B158: 1 | C158: 7 | D158: 12 | E158: 0.01032992851 | F158: 0.01827346862 | G158: 0 | H158: 0 | J158: 0.005843318645 | L158: 9.176710073e-05 | N158: 0.03453848288 | O158: 10329.92851 | P158: 0.0001279773004 | Q158: 11973.84776 | R158: 18273.46862 | S158: 0.0001435627968 | T158: 19159.43755 | U158: 0 | V158: 0 | W158: 0 | X158: 0 | Y158: 0 | Z158: 0 | AA158: 5843.318645 | AB158: 0.000177976783 | AC158: 6099.761154 | AD158: 91.76710073 | AE158: 0.0001172960605 | AF158: 43.4715034 | AG158: 34538.48288 | AH158: 37276.51797
A159: 2004 | B159: 1 | C159: 7 | D159: 13 | E159: 0.01039498141 | F159: 0.01791186105 | G159: 0 | H159: 0 | J159: 0.005394521702 | L159: 9.176710073e-05 | N159: 0.03379313127 | O159: 10394.98141 | P159: 0.0001287832396 | Q159: 12049.25327 | R159: 17911.86105 | S159: 0.0001407218806 | T159: 18780.29783 | U159: 0 | V159: 0 | W159: 0 | X159: 0 | Y159: 0 | Z159: 0 | AA159: 5394.521702 | AB159: 0.0001643072502 | AC159: 5631.268107 | AD159: 91.76710073 | AE159: 0.0001172960605 | AF159: 43.4715034 | AG159: 33793.13127 | AH159: 36504.29071
A160: 2004 | B160: 1 | C160: 7 | D160: 14 | E160: 0.00996334997 | F160: 0.01792734035 | G160: 0 | H160: 0 | J160: 0.005672054152 | L160: 9.176710073e-05 | N160: 0.03365451158 | O160: 9963.34997 | P160: 0.0001234357653 | Q160: 11548.93139 | R160: 17927.34035 | S160: 0.0001408434914 | T160: 18796.52763 | U160: 0 | V160: 0 | W160: 0 | X160: 0 | Y160: 0 | Z160: 0 | AA160: 5672.054152 | AB160: 0.0001727603803 | AC160: 5920.98047 | AD160: 91.76710073 | AE160: 0.0001172960605 | AF160: 43.4715034 | AG160: 33654.51158 | AH160: 36309.911
A161: 2004 | B161: 1 | C161: 7 | D161: 15 | E161: 0.009566909326 | F161: 0.01796993454 | G161: 0 | H161: 0 | J161: 0.005689584773 | L161: 9.176710073e-05 | N161: 0.03331819574 | O161: 9566.909326 | P161: 0.0001185242692 | Q161: 11089.40063 | R161: 17969.93454 | S161: 0.0001411781263 | T161: 18841.18695 | U161: 0 | V161: 0 | W161: 0 | X161: 0 | Y161: 0 | Z161: 0 | AA161: 5689.584773 | AB161: 0.0001732943309 | AC161: 5939.280448 | AD161: 91.76710073 | AE161: 0.0001172960605 | AF161: 43.4715034 | AG161: 33318.19574 | AH161: 35913.33954
A162: 2004 | B162: 1 | C162: 7 | D162: 16 | E162: 0.01031207724 | F162: 0.01780468215 | G162: 0 | H162: 0 | J162: 0.005725494119 | L162: 9.176710073e-05 | N162: 0.03393402061 | O162: 10312.07724 | P162: 0.0001277561413 | Q162: 11953.15561 | R162: 17804.68215 | S162: 0.0001398798454 | T162: 18667.92248 | U162: 0 | V162: 0 | W162: 0 | X162: 0 | Y162: 0 | Z162: 0 | AA162: 5725.494119 | AB162: 0.0001743880638 | AC162: 5976.765728 | AD162: 91.76710073 | AE162: 0.0001172960605 | AF162: 43.4715034 | AG162: 33934.02061 | AH162: 36641.31533
A163: 2004 | B163: 1 | C163: 7 | D163: 17 | E163: 0.0117489624 | F163: 0.01773362985 | G163: 0 | H163: 0 | J163: 0.005685994029 | L163: 9.176710073e-05 | N163: 0.03526035338 | O163: 11748.9624 | P163: 0.0001455576858 | Q163: 13618.70867 | R163: 17733.62985 | S163: 0.0001393216336 | T163: 18593.42529 | U163: 0 | V163: 0 | W163: 0 | X163: 0 | Y163: 0 | Z163: 0 | AA163: 5685.994029 | AB163: 0.0001731849634 | AC163: 5935.53212 | AD163: 91.76710073 | AE163: 0.0001172960605 | AF163: 43.4715034 | AG163: 35260.35338 | AH163: 38191.13759
A164: 2004 | B164: 1 | C164: 7 | D164: 18 | E164: 0.01394569502 | F164: 0.01782331043 | G164: 0.0003855548346 | H164: 3.247803898e-05 | J164: 0.005380469326 | L164: 9.176710073e-05 | N164: 0.03765927475 | O164: 13945.69502 | P164: 0.0001727729672 | Q164: 16165.0324 | R164: 17823.31043 | S164: 0.0001400261957 | T164: 18687.45393 | U164: 385.5548346 | V164: 0.0002331545815 | W164: 206.0578354 | X164: 32.47803898 | Y164: 0.0002331545815 | Z164: 23.29681212 | AA164: 5380.469326 | AB164: 0.0001638792406 | AC164: 5616.599022 | AD164: 91.76710073 | AE164: 0.0001172960605 | AF164: 43.4715034 | AG164: 37659.27475 | AH164: 40741.9115
A165: 2004 | B165: 1 | C165: 7 | D165: 19 | E165: 0.01471082237 | F165: 0.01763958079 | G165: 0.0003855548346 | H165: 3.247803898e-05 | J165: 0.00520583033 | L165: 9.176710073e-05 | N165: 0.03806603347 | O165: 14710.82237 | P165: 0.0001822521163 | Q165: 17051.92318 | R165: 17639.58079 | S165: 0.0001385827511 | T165: 18494.81637 | U165: 385.5548346 | V165: 0.0002331545815 | W165: 206.0578354 | X165: 32.47803898 | Y165: 0.0002331545815 | Z165: 23.29681212 | AA165: 5205.83033 | AB165: 0.0001585600566 | AC165: 5434.29574 | AD165: 91.76710073 | AE165: 0.0001172960605 | AF165: 43.4715034 | AG165: 38066.03347 | AH165: 41253.86144
A166: 2004 | B166: 1 | C166: 7 | D166: 20 | E166: 0.01428055124 | F166: 0.01737313282 | G166: 0.0003855548346 | H166: 3.247803898e-05 | J166: 0.004767855706 | L166: 9.176710073e-05 | N166: 0.03693133974 | O166: 14280.55124 | P166: 0.0001769214949 | Q166: 16553.1781 | R166: 17373.13282 | S166: 0.0001364894421 | T166: 18215.44996 | U166: 385.5548346 | V166: 0.0002331545815 | W166: 206.0578354 | X166: 32.47803898 | Y166: 0.0002331545815 | Z166: 23.29681212 | AA166: 4767.855706 | AB166: 0.0001452201518 | AC166: 4977.099965 | AD166: 91.76710073 | AE166: 0.0001172960605 | AF166: 43.4715034 | AG166: 36931.33974 | AH166: 40018.55417
A167: 2004 | B167: 1 | C167: 7 | D167: 21 | E167: 0.01394346103 | F167: 0.01709619811 | G167: 0.0003855548346 | H167: 3.247803898e-05 | J167: 0.004576686365 | L167: 9.176710073e-05 | N167: 0.03612614548 | O167: 13943.46103 | P167: 0.0001727452903 | Q167: 16162.44288 | R167: 17096.19811 | S167: 0.0001343137456 | T167: 17925.08838 | U167: 385.5548346 | V167: 0.0002331545815 | W167: 206.0578354 | X167: 32.47803898 | Y167: 0.0002331545815 | Z167: 23.29681212 | AA167: 4576.686365 | AB167: 0.0001393974838 | AC167: 4777.54088 | AD167: 91.76710073 | AE167: 0.0001172960605 | AF167: 43.4715034 | AG167: 36126.14548 | AH167: 39137.89829
A168: 2004 | B168: 1 | C168: 7 | D168: 22 | E168: 0.01325862803 | F168: 0.01632327795 | G168: 0.0003855548346 | H168: 3.247803898e-05 | J168: 0.003958967687 | L168: 9.176710073e-05 | N168: 0.03405067364 | O168: 13258.62803 | P168: 0.0001642609065 | Q168: 15368.6246 | R168: 16323.27795 | S168: 0.000128241413 | T168: 17114.69404 | U168: 385.5548346 | V168: 0.0002331545815 | W168: 206.0578354 | X168: 32.47803898 | Y168: 0.0002331545815 | Z168: 23.29681212 | AA168: 3958.967687 | AB168: 0.0001205829043 | AC168: 4132.712722 | AD168: 91.76710073 | AE168: 0.0001172960605 | AF168: 43.4715034 | AG168: 34050.67364 | AH168: 36888.85752
A169: 2004 | B169: 1 | C169: 7 | D169: 23 | E169: 0.01188578002 | F169: 0.01522284535 | G169: 0.0003855548346 | H169: 3.247803898e-05 | J169: 0.003157693607 | L169: 9.176710073e-05 | N169: 0.03077611896 | O169: 11885.78002 | P169: 0.000147252717 | Q169: 13777.29965 | R169: 15222.84535 | S169: 0.0001195960274 | T169: 15960.90818 | U169: 385.5548346 | V169: 0.0002331545815 | W169: 206.0578354 | X169: 32.47803898 | Y169: 0.0002331545815 | Z169: 23.29681212 | AA169: 3157.693607 | AB169: 9.61775635e-05 | AC169: 3296.273568 | AD169: 91.76710073 | AE169: 0.0001172960605 | AF169: 43.4715034 | AG169: 30776.11896 | AH169: 33307.30755
A170: 2004 | B170: 1 | C170: 7 | D170: 24 | E170: 0.01003912535 | F170: 0.0143803498 | G170: 0.0003855548346 | H170: 3.247803898e-05 | J170: 0.002779835355 | L170: 9.176710073e-05 | N170: 0.02770911048 | O170: 10039.12535 | P170: 0.0001243745451 | Q170: 11636.76577 | R170: 14380.3498 | S170: 0.0001129770861 | T170: 15077.56517 | U170: 385.5548346 | V170: 0.0002331545815 | W170: 206.0578354 | X170: 32.47803898 | Y170: 0.0002331545815 | Z170: 23.29681212 | AA170: 2779.835355 | AB170: 8.466869323e-05 | AC170: 2901.832459 | AD170: 91.76710073 | AE170: 0.0001172960605 | AF170: 43.4715034 | AG170: 27709.11048 | AH170: 29888.98954
A171: 2004 | B171: 1 | C171: 8 | D171: 1 | E171: 0.008036991683 | F171: 0.01393556273 | G171: 0.0003855548346 | H171: 3.247803898e-05 | J171: 0.002979411816 | L171: 9.176710073e-05 | N171: 0.02546176621 | O171: 8036.991683 | P171: 9.95701468e-05 | Q171: 9316.00976 | R171: 13935.56273 | S171: 0.0001094826824 | T171: 14611.21309 | U171: 385.5548346 | V171: 0.0002331545815 | W171: 206.0578354 | X171: 32.47803898 | Y171: 0.0002331545815 | Z171: 23.29681212 | AA171: 2979.411816 | AB171: 9.074742667e-05 | AC171: 3110.167622 | AD171: 91.76710073 | AE171: 0.0001172960605 | AF171: 43.4715034 | AG171: 25461.76621 | AH171: 27310.21662
A172: 2004 | B172: 1 | C172: 8 | D172: 2 | E172: 0.007415250401 | F172: 0.01382835871 | G172: 0.0003855548346 | H172: 3.247803898e-05 | J172: 0.003084732549 | L172: 9.176710073e-05 | N172: 0.02483814164 | O172: 7415.250401 | P172: 9.186740513e-05 | Q172: 8595.323703 | R172: 13828.35871 | S172: 0.0001086404499 | T172: 14498.8114 | U172: 385.5548346 | V172: 0.0002331545815 | W172: 206.0578354 | X172: 32.47803898 | Y172: 0.0002331545815 | Z172: 23.29681212 | AA172: 3084.732549 | AB172: 9.39553033e-05 | AC172: 3220.110508 | AD172: 91.76710073 | AE172: 0.0001172960605 | AF172: 43.4715034 | AG172: 24838.14164 | AH172: 26587.07176
A173: 2004 | B173: 1 | C173: 8 | D173: 3 | E173: 0.007422331827 | F173: 0.0136572755 | G173: 0.0003855548346 | H173: 3.247803898e-05 | J173: 0.002851541345 | L173: 9.176710073e-05 | N173: 0.02444094865 | O173: 7422.331827 | P173: 9.195513679e-05 | Q173: 8603.532076 | R173: 13657.2755 | S173: 0.00010729636 | T173: 14319.43341 | U173: 385.5548346 | V173: 0.0002331545815 | W173: 206.0578354 | X173: 32.47803898 | Y173: 0.0002331545815 | Z173: 23.29681212 | AA173: 2851.541345 | AB173: 8.685272636e-05 | AC173: 2976.685371 | AD173: 91.76710073 | AE173: 0.0001172960605 | AF173: 43.4715034 | AG173: 24440.94865 | AH173: 26172.477
A174: 2004 | B174: 1 | C174: 8 | D174: 4 | E174: 0.007248327356 | F174: 0.01348497338 | G174: 0.0003855548346 | H174: 3.247803898e-05 | J174: 0.003070713047 | L174: 9.176710073e-05 | N174: 0.02431381376 | O174: 7248.327356 | P174: 8.97993985e-05 | Q174: 8401.836291 | R174: 13484.97338 | S174: 0.0001059426939 | T174: 14138.77741 | U174: 385.5548346 | V174: 0.0002331545815 | W174: 206.0578354 | X174: 32.47803898 | Y174: 0.0002331545815 | Z174: 23.29681212 | AA174: 3070.713047 | AB174: 9.352829496e-05 | AC174: 3205.475741 | AD174: 91.76710073 | AE174: 0.0001172960605 | AF174: 43.4715034 | AG174: 24313.81376 | AH174: 26018.91559
A175: 2004 | B175: 1 | C175: 8 | D175: 5 | E175: 0.007727213959 | F175: 0.01341302983 | G175: 0.0003855548346 | H175: 3.247803898e-05 | J175: 0.002933833834 | L175: 9.176710073e-05 | N175: 0.02458387759 | O175: 7727.213959 | P175: 9.573231609e-05 | Q175: 8956.933576 | R175: 13413.02983 | S175: 0.0001053774801 | T175: 14063.34575 | U175: 385.5548346 | V175: 0.0002331545815 | W175: 206.0578354 | X175: 32.47803898 | Y175: 0.0002331545815 | Z175: 23.29681212 | AA175: 2933.833834 | AB175: 8.935920484e-05 | AC175: 3062.589385 | AD175: 91.76710073 | AE175: 0.0001172960605 | AF175: 43.4715034 | AG175: 24583.87759 | AH175: 26355.69486
A176: 2004 | B176: 1 | C176: 8 | D176: 6 | E176: 0.008076617006 | F176: 0.01401331136 | G176: 0.0003855548346 | H176: 3.247803898e-05 | J176: 0.003234405311 | L176: 9.176710073e-05 | N176: 0.02583413365 | O176: 8076.617006 | P176: 0.0001000610642 | Q176: 9361.941113 | R176: 14013.31136 | S176: 0.0001100935029 | T176: 14692.73127 | U176: 385.5548346 | V176: 0.0002331545815 | W176: 206.0578354 | X176: 32.47803898 | Y176: 0.0002331545815 | Z176: 23.29681212 | AA176: 3234.405311 | AB176: 9.851406147e-05 | AC176: 3376.351876 | AD176: 91.76710073 | AE176: 0.0001172960605 | AF176: 43.4715034 | AG176: 25834.13365 | AH176: 27703.85041
A177: 2004 | B177: 1 | C177: 8 | D177: 7 | E177: 0.009250805371 | F177: 0.01490055086 | G177: 0.0003855548346 | H177: 3.247803898e-05 | J177: 0.003632117387 | L177: 9.176710073e-05 | N177: 0.02829327359 | O177: 9250.805371 | P177: 0.000114608063 | Q177: 10722.99145 | R177: 14900.55086 | S177: 0.0001170639685 | T177: 15622.98759 | U177: 385.5548346 | V177: 0.0002331545815 | W177: 206.0578354 | X177: 32.47803898 | Y177: 0.0002331545815 | Z177: 23.29681212 | AA177: 3632.117387 | AB177: 0.0001106276429 | AC177: 3791.518124 | AD177: 91.76710073 | AE177: 0.0001172960605 | AF177: 43.4715034 | AG177: 28293.27359 | AH177: 30410.32332
A178: 2004 | B178: 1 | C178: 8 | D178: 8 | E178: 0.01091991415 | F178: 0.01631718116 | G178: 0.0003855548346 | H178: 3.247803898e-05 | J178: 0.003945090151 | L178: 9.176710073e-05 | N178: 0.03169198543 | O178: 10919.91415 | P178: 0.0001352866218 | Q178: 12657.72453 | R178: 16317.18116 | S178: 0.0001281935144 | T178: 17108.30165 | U178: 385.5548346 | V178: 0.0002331545815 | W178: 206.0578354 | X178: 32.47803898 | Y178: 0.0002331545815 | Z178: 23.29681212 | AA178: 3945.090151 | AB178: 0.00012016022 | AC178: 4118.226151 | AD178: 91.76710073 | AE178: 0.0001172960605 | AF178: 43.4715034 | AG178: 31691.98543 | AH178: 34157.07848
A179: 2004 | B179: 1 | C179: 8 | D179: 9 | E179: 0.01051500458 | F179: 0.01742827936 | G179: 0.0003855548346 | H179: 3.247803898e-05 | J179: 0.004325922047 | L179: 9.176710073e-05 | N179: 0.03277900596 | O179: 10515.00458 | P179: 0.0001302702045 | Q179: 12188.37709 | R179: 17428.27936 | S179: 0.0001369226927 | T179: 18273.27022 | U179: 385.5548346 | V179: 0.0002331545815 | W179: 206.0578354 | X179: 32.47803898 | Y179: 0.0002331545815 | Z179: 23.29681212 | AA179: 4325.922047 | AB179: 0.000131759662 | AC179: 4515.771406 | AD179: 91.76710073 | AE179: 0.0001172960605 | AF179: 43.4715034 | AG179: 32779.00596 | AH179: 35250.24487
A180: 2004 | B180: 1 | C180: 8 | D180: 10 | E180: 0.01003510933 | F180: 0.01802197665 | G180: 0 | H180: 0 | J180: 0.005151466444 | L180: 9.176710073e-05 | N180: 0.03330031952 | O180: 10035.10933 | P180: 0.0001243247907 | Q180: 11632.11064 | R180: 18021.97665 | S180: 0.0001415869874 | T180: 18895.75226 | U180: 0 | V180: 0 | W180: 0 | X180: 0 | Y180: 0 | Z180: 0 | AA180: 5151.466444 | AB180: 0.0001569042322 | AC180: 5377.546017 | AD180: 91.76710073 | AE180: 0.0001172960605 | AF180: 43.4715034 | AG180: 33300.31952 | AH180: 35948.88042
A181: 2004 | B181: 1 | C181: 8 | D181: 11 | E181: 0.009799990085 | F181: 0.018354799 | G181: 0 | H181: 0 | J181: 0.005727037327 | L181: 9.176710073e-05 | N181: 0.03397359351 | O181: 9799.990085 | P181: 0.0001214119026 | Q181: 11359.57419 | R181: 18354.799 | S181: 0.0001442017569 | T181: 19244.71114 | U181: 0 | V181: 0 | W181: 0 | X181: 0 | Y181: 0 | Z181: 0 | AA181: 5727.037327 | AB181: 0.0001744350671 | AC181: 5978.376662 | AD181: 91.76710073 | AE181: 0.0001172960605 | AF181: 43.4715034 | AG181: 33973.59351 | AH181: 36626.13349
A182: 2004 | B182: 1 | C182: 8 | D182: 12 | E182: 0.01012619312 | F182: 0.0183405522 | G182: 0 | H182: 0 | J182: 0.005742310909 | L182: 9.176710073e-05 | N182: 0.03430082333 | O182: 10126.19312 | P182: 0.0001254532262 | Q182: 11737.68963 | R182: 18340.5522 | S182: 0.000144089829 | T182: 19229.7736 | U182: 0 | V182: 0 | W182: 0 | X182: 0 | Y182: 0 | Z182: 0 | AA182: 5742.310909 | AB182: 0.0001749002724 | AC182: 5994.320547 | AD182: 91.76710073 | AE182: 0.0001172960605 | AF182: 43.4715034 | AG182: 34300.82333 | AH182: 37005.25528
A183: 2004 | B183: 1 | C183: 8 | D183: 13 | E183: 0.01017488542 | F183: 0.01804748675 | G183: 0 | H183: 0 | J183: 0.005246463139 | L183: 9.176710073e-05 | N183: 0.03356060241 | O183: 10174.88542 | P183: 0.0001260564742 | Q183: 11794.13089 | R183: 18047.48675 | S183: 0.0001417874037 | T183: 18922.49919 | U183: 0 | V183: 0 | W183: 0 | X183: 0 | Y183: 0 | Z183: 0 | AA183: 5246.463139 | AB183: 0.0001597976575 | AC183: 5476.711779 | AD183: 91.76710073 | AE183: 0.0001172960605 | AF183: 43.4715034 | AG183: 33560.60241 | AH183: 36236.81336
A184: 2004 | B184: 1 | C184: 8 | D184: 14 | E184: 0.009785501902 | F184: 0.01793932834 | G184: 0 | H184: 0 | J184: 0.005606341199 | L184: 9.176710073e-05 | N184: 0.03342293854 | O184: 9785.501902 | P184: 0.0001212324088 | Q184: 11342.78034 | R184: 17939.32834 | S184: 0.0001409376733 | T184: 18809.09684 | U184: 0 | V184: 0 | W184: 0 | X184: 0 | Y184: 0 | Z184: 0 | AA184: 5606.341199 | AB184: 0.0001707588841 | AC184: 5852.383609 | AD184: 91.76710073 | AE184: 0.0001172960605 | AF184: 43.4715034 | AG184: 33422.93854 | AH184: 36047.73229
A185: 2004 | B185: 1 | C185: 8 | D185: 15 | E185: 0.009428527686 | F185: 0.01782852587 | G185: 0 | H185: 0 | J185: 0.005740115469 | L185: 9.176710073e-05 | N185: 0.03308893612 | O185: 9428.527686 | P185: 0.0001168098616 | Q185: 10928.99675 | R185: 17828.52587 | S185: 0.00014006717 | T185: 18692.92223 | U185: 0 | V185: 0 | W185: 0 | X185: 0 | Y185: 0 | Z185: 0 | AA185: 5740.115469 | AB185: 0.0001748334033 | AC185: 5992.028756 | AD185: 91.76710073 | AE185: 0.0001172960605 | AF185: 43.4715034 | AG185: 33088.93612 | AH185: 35657.41924
A186: 2004 | B186: 1 | C186: 8 | D186: 16 | E186: 0.01015724711 | F186: 0.0176966387 | G186: 0 | H186: 0 | J186: 0.00575486818 | L186: 9.176710073e-05 | N186: 0.03370052109 | O186: 10157.24711 | P186: 0.0001258379536 | Q186: 11773.6856 | R186: 17696.6387 | S186: 0.0001390310181 | T186: 18554.64066 | U186: 0 | V186: 0 | W186: 0 | X186: 0 | Y186: 0 | Z186: 0 | AA186: 5754.86818 | AB186: 0.0001752827439 | AC186: 6007.428912 | AD186: 91.76710073 | AE186: 0.0001172960605 | AF186: 43.4715034 | AG186: 33700.52109 | AH186: 36379.22668
A187: 2004 | B187: 1 | C187: 8 | D187: 17 | E187: 0.01158399862 | F187: 0.01761309936 | G187: 0 | H187: 0 | J187: 0.005728862824 | L187: 9.176710073e-05 | N187: 0.0350177279 | O187: 11583.99862 | P187: 0.0001435139526 | Q187: 13427.49234 | R187: 17613.09936 | S187: 0.0001383747036 | T187: 18467.05101 | U187: 0 | V187: 0 | W187: 0 | X187: 0 | Y187: 0 | Z187: 0 | AA187: 5728.862824 | AB187: 0.0001744906684 | AC187: 5980.282273 | AD187: 91.76710073 | AE187: 0.0001172960605 | AF187: 43.4715034 | AG187: 35017.7279 | AH187: 37918.29712
A188: 2004 | B188: 1 | C188: 8 | D188: 18 | E188: 0.01379557547 | F188: 0.01758588422 | G188: 0.0003855548346 | H188: 3.247803898e-05 | J188: 0.005508881731 | L188: 9.176710073e-05 | N188: 0.0374001414 | O188: 13795.57547 | P188: 0.0001709131388 | Q188: 15991.02261 | R188: 17585.88422 | S188: 0.000138160892 | T188: 18438.51638 | U188: 385.5548346 | V188: 0.0002331545815 | W188: 206.0578354 | X188: 32.47803898 | Y188: 0.0002331545815 | Z188: 23.29681212 | AA188: 5508.881731 | AB188: 0.0001677904472 | AC188: 5750.646991 | AD188: 91.76710073 | AE188: 0.0001172960605 | AF188: 43.4715034 | AG188: 37400.1414 | AH188: 40453.01213
A189: 2004 | B189: 1 | C189: 8 | D189: 19 | E189: 0.01453297556 | F189: 0.01749895578 | G189: 0.0003855548346 | H189: 3.247803898e-05 | J189: 0.00526237017 | L189: 9.176710073e-05 | N189: 0.03780410149 | O189: 14532.97556 | P189: 0.0001800487754 | Q189: 16845.77358 | R189: 17498.95578 | S189: 0.0001374779516 | T189: 18347.37331 | U189: 385.5548346 | V189: 0.0002331545815 | W189: 206.0578354 | X189: 32.47803898 | Y189: 0.0002331545815 | Z189: 23.29681212 | AA189: 5262.37017 | AB189: 0.0001602821566 | AC189: 5493.316913 | AD189: 91.76710073 | AE189: 0.0001172960605 | AF189: 43.4715034 | AG189: 37804.10149 | AH189: 40959.28996
A190: 2004 | B190: 1 | C190: 8 | D190: 20 | E190: 0.01409804375 | F190: 0.01724260407 | G190: 0.0003855548346 | H190: 3.247803898e-05 | J190: 0.004826768516 | L190: 9.176710073e-05 | N190: 0.03667721631 | O190: 14098.04375 | P190: 0.0001746604129 | Q190: 16341.62611 | R190: 17242.60407 | S190: 0.0001354639623 | T190: 18078.59267 | U190: 385.5548346 | V190: 0.0002331545815 | W190: 206.0578354 | X190: 32.47803898 | Y190: 0.0002331545815 | Z190: 23.29681212 | AA190: 4826.768516 | AB190: 0.0001470145281 | AC190: 5038.598249 | AD190: 91.76710073 | AE190: 0.0001172960605 | AF190: 43.4715034 | AG190: 36677.21631 | AH190: 39731.64318
A191: 2004 | B191: 1 | C191: 8 | D191: 21 | E191: 0.01373797598 | F191: 0.01705740225 | G191: 0.0003855548346 | H191: 3.247803898e-05 | J191: 0.0045723868 | L191: 9.176710073e-05 | N191: 0.03587756501 | O191: 13737.97598 | P191: 0.0001701995397 | Q191: 15924.25666 | R191: 17057.40225 | S191: 0.0001340089517 | T191: 17884.41154 | U191: 385.5548346 | V191: 0.0002331545815 | W191: 206.0578354 | X191: 32.47803898 | Y191: 0.0002331545815 | Z191: 23.29681212 | AA191: 4572.3868 | AB191: 0.0001392665269 | AC191: 4773.052623 | AD191: 91.76710073 | AE191: 0.0001172960605 | AF191: 43.4715034 | AG191: 35877.56501 | AH191: 38854.54698
A192: 2004 | B192: 1 | C192: 8 | D192: 22 | E192: 0.01302603302 | F192: 0.01638083303 | G192: 0.0003855548346 | H192: 3.247803898e-05 | J192: 0.003899705318 | L192: 9.176710073e-05 | N192: 0.03381637134 | O192: 13026.03302 | P192: 0.000161379291 | Q192: 15099.01409 | R192: 16380.83303 | S192: 0.0001286935859 | T192: 17175.03961 | U192: 385.5548346 | V192: 0.0002331545815 | W192: 206.0578354 | X192: 32.47803898 | Y192: 0.0002331545815 | Z192: 23.29681212 | AA192: 3899.705318 | AB192: 0.0001187778811 | AC192: 4070.849539 | AD192: 91.76710073 | AE192: 0.0001172960605 | AF192: 43.4715034 | AG192: 33816.37134 | AH192: 36617.7294
A193: 2004 | B193: 1 | C193: 8 | D193: 23 | E193: 0.01170404874 | F193: 0.01514238445 | G193: 0.0003855548346 | H193: 3.247803898e-05 | J193: 0.003208115712 | L193: 9.176710073e-05 | N193: 0.03056434888 | O193: 11704.04874 | P193: 0.0001450012514 | Q193: 13566.6474 | R193: 15142.38445 | S193: 0.0001189638982 | T193: 15876.54622 | U193: 385.5548346 | V193: 0.0002331545815 | W193: 206.0578354 | X193: 32.47803898 | Y193: 0.0002331545815 | Z193: 23.29681212 | AA193: 3208.115712 | AB193: 9.771332846e-05 | AC193: 3348.908521 | AD193: 91.76710073 | AE193: 0.0001172960605 | AF193: 43.4715034 | AG193: 30564.34888 | AH193: 33064.92829
A194: 2004 | B194: 1 | C194: 8 | D194: 24 | E194: 0.009859285499 | F194: 0.01434767685 | G194: 0.0003855548346 | H194: 3.247803898e-05 | J194: 0.002801681694 | L194: 9.176710073e-05 | N194: 0.02751844401 | O194: 9859.285499 | P194: 0.0001221465124 | Q194: 11428.30596 | R194: 14347.67685 | S194: 0.0001127203958 | T194: 15043.3081 | U194: 385.5548346 | V194: 0.0002331545815 | W194: 206.0578354 | X194: 32.47803898 | Y194: 0.0002331545815 | Z194: 23.29681212 | AA194: 2801.681694 | AB194: 8.533409269e-05 | AC194: 2924.637556 | AD194: 91.76710073 | AE194: 0.0001172960605 | AF194: 43.4715034 | AG194: 27518.44401 | AH194: 29669.07776
A195: 2004 | B195: 1 | C195: 9 | D195: 1 | E195: 0.008134020727 | F195: 0.01384375106 | G195: 0.0003855548346 | H195: 3.247803898e-05 | J195: 0.003178086393 | L195: 9.176710073e-05 | N195: 0.02566565816 | O195: 8134.020727 | P195: 0.0001007722379 | Q195: 9428.480141 | R195: 13843.75106 | S195: 0.0001087613776 | T195: 14514.95003 | U195: 385.5548346 | V195: 0.0002331545815 | W195: 206.0578354 | X195: 32.47803898 | Y195: 0.0002331545815 | Z195: 23.29681212 | AA195: 3178.086393 | AB195: 9.679869038e-05 | AC195: 3317.561321 | AD195: 91.76710073 | AE195: 0.0001172960605 | AF195: 43.4715034 | AG195: =O195+R195+U195+X195+AA195+AD195 -> 25665.65816 | AH195: =Q195+T195+W195+Z195+AC195+AF195 -> 27533.81764
A196: 2004 | B196: 1 | C196: 9 | D196: 2 | E196: 0.00728566334 | F196: 0.01374639077 | G196: 0.0003855548346 | H196: 3.247803898e-05 | J196: 0.003094717864 | L196: 9.176710073e-05 | N196: 0.02463657195 | O196: =E196*1000000 -> 7285.66334 | P196: =O196/$O$8787 -> 9.026195335e-05 | Q196: =P196*$Q$8787 -> 8445.113976 | R196: =F196*1000000 -> 13746.39077 | S196: =R196/$R$8787 -> 0.0001079964809 | T196: =S196*$T$8787 -> 14412.86933 | U196: =G196*1000000 -> 385.5548346 | V196: =U196/$U$8787 -> 0.0002331545815 | W196: =V196*$W$8787 -> 206.0578354 | X196: =H196*1000000 -> 32.47803898 | Y196: =X196/$X$8787 -> 0.0002331545815 | Z196: =Y196*$Z$8787 -> 23.29681212 | AA196: =J196*1000000 -> 3094.717864 | AB196: =AA196/$AA$8787 -> 9.42594377e-05 | AC196: =AB196*$AC$8787 -> 3230.534043 | AD196: =L196*1000000 -> 91.76710073 | AE196: =AD196/$AD$8787 -> 0.0001172960605 | AF196: =AE196*$AF$8787 -> 43.4715034 | AG196: 24636.57195 | AH196: 26361.3435
A197: 2004 | B197: 1 | C197: 9 | D197: 3 | E197: 0.007228454377 | F197: 0.01357094506 | G197: 0.0003855548346 | H197: 3.247803898e-05 | J197: 0.002911737773 | L197: 9.176710073e-05 | N197: 0.02422093718 | O197: 7228.454377 | P197: 8.955319251e-05 | Q197: 8378.800698 | R197: 13570.94506 | S197: 0.0001066181177 | T197: 14228.91732 | U197: 385.5548346 | V197: 0.0002331545815 | W197: 206.0578354 | X197: 32.47803898 | Y197: 0.0002331545815 | Z197: 23.29681212 | AA197: 2911.737773 | AB197: 8.86861993e-05 | AC197: 3039.523606 | AD197: 91.76710073 | AE197: 0.0001172960605 | AF197: 43.4715034 | AG197: 24220.93718 | AH197: 25920.06778
A198: 2004 | B198: 1 | C198: 9 | D198: 4 | E198: 0.00734284965 | F198: 0.01361115731 | G198: 0.0003855548346 | H198: 3.247803898e-05 | J198: 0.002647477716 | L198: 9.176710073e-05 | N198: 0.02411128465 | O198: 7342.84965 | P198: 9.097043351e-05 | Q198: 8511.400994 | R198: 13611.15731 | S198: 0.0001069340393 | T198: 14271.07923 | U198: 385.5548346 | V198: 0.0002331545815 | W198: 206.0578354 | X198: 32.47803898 | Y198: 0.0002331545815 | Z198: 23.29681212 | AA198: 2647.477716 | AB198: 8.063732198e-05 | AC198: 2763.666113 | AD198: 91.76710073 | AE198: 0.0001172960605 | AF198: 43.4715034 | AG198: 24111.28465 | AH198: 25818.97249
A199: 2004 | B199: 1 | C199: 9 | D199: 5 | E199: 0.007247393759 | F199: 0.01379855514 | G199: 0.0003855548346 | H199: 3.247803898e-05 | J199: 0.002813364641 | L199: 9.176710073e-05 | N199: 0.02436911351 | O199: 7247.393759 | P199: 8.978783218e-05 | Q199: 8400.75412 | R199: 13798.55514 | S199: 0.0001084063025 | T199: 14467.56283 | U199: 385.5548346 | V199: 0.0002331545815 | W199: 206.0578354 | X199: 32.47803898 | Y199: 0.0002331545815 | Z199: 23.29681212 | AA199: 2813.364641 | AB199: 8.568993388e-05 | AC199: 2936.833227 | AD199: 91.76710073 | AE199: 0.0001172960605 | AF199: 43.4715034 | AG199: 24369.11351 | AH199: 26077.97633
A200: 2004 | B200: 1 | C200: 9 | D200: 6 | E200: 0.007866706543 | F200: 0.01419984576 | G200: 0.0003855548346 | H200: 3.247803898e-05 | J200: 0.002693676373 | L200: 9.176710073e-05 | N200: 0.02527002865 | O200: 7866.706543 | P200: 9.746048724e-05 | Q200: 9118.625205 | R200: 14199.84576 | S200: 0.0001115589828 | T200: 14888.30958 | U200: 385.5548346 | V200: 0.0002331545815 | W200: 206.0578354 | X200: 32.47803898 | Y200: 0.0002331545815 | Z200: 23.29681212 | AA200: 2693.676373 | AB200: 8.204444845e-05 | AC200: 2811.892265 | AD200: 91.76710073 | AE200: 0.0001172960605 | AF200: 43.4715034 | AG200: 25270.02865 | AH200: 27091.6532
... 2047 more rows

Sheet Input to CA model
A2: Feed into OEB Cost Allocation Model (version 50) sheet "I6 Customer Data", row 27
D3: 1 | E3: 2 | F3: 3 | G3: 4 | H3: 5 | I3: 6 | J3: 7 | K3: 8 | L3: 9 | M3: 10 | N3: 11 | O3: 12 | P3: 13 | Q3: 14 | R3: 15 | S3: 16 | T3: 17 | U3: 18 | V3: 19 | W3: 20
B4: ID | C4: Total | D4: Residential | E4: GS>50kW | F4: Street Lighting | G4: Sentinel Lighting | H4: Large User | I4: GS < 50 kW | J4: Intermediate | K4: USL | L4: Stand By
A6: kWh - 30 year weather normalized amount | C6: =SUM(D6:K6) -> 262646227.4 | D6: =+'Hourly load shapes by class'!Q8787 -> 93562278.05 | E6: =+'Hourly load shapes by class'!T8787 -> 133456842.4 | F6: =+'Hourly load shapes by class'!W8787 -> 883782.0562 | G6: =+'Hourly load shapes by class'!Z8787 -> 99920.02719 | I6: =+'Hourly load shapes by class'!AC8787 -> 34272791.37 | K6: =+'Hourly load shapes by class'!AF8787 -> 370613.4989
D8: =D7/$C$6 -> 0 | E8: =E7/$C$6 -> 0 | F8: =F7/$C$6 -> 0 | G8: 0 | H8: 0 | I8: =I7/$C$6 -> 0 | J8: 0 | K8: 0 | L8: 0
A9: Feed into OEB Cost Allocation Model sheet (version 50) "I8 Demand Data", row 40, 45, 50, 55, 61 and 67
D10: 1 | E10: 2 | F10: 3 | G10: 4 | H10: 5 | I10: 6 | J10: 7 | K10: 8 | L10: 9 | M10: 10 | N10: 11 | O10: 12 | P10: 13 | Q10: 14 | R10: 15 | S10: 16 | T10: 17 | U10: 18 | V10: 19 | W10: 20
A11: Customer Classes | C11: Total | D11: Residential | E11: GS>50kW | F11: Street Lighting | G11: Sentinel Lighting | H11: Large User | I11: GS < 50 kW | J11: Intermediate | K11: USL | L11: Stand By
A13: CO-INCIDENT PEAK (kW)
A15: 1 CP
A16: Total Sytem CP | B16: DCP1 | C16: =SUM(D16:K16) -> 43590.13274 | D16: ='Hourly load shapes by class'!Q8819 -> 19129.72196 | E16: ='Hourly load shapes by class'!T8819 -> 18916.75105 | F16: ='Hourly load shapes by class'!W8819 -> 206.0578354 | G16: ='Hourly load shapes by class'!Z8819 -> 23.29681212 | I16: ='Hourly load shapes by class'!AC8819 -> 5281.070158 | K16: ='Hourly load shapes by class'!AF8819 -> 33.23492217
A18: 4 CP | D18: =D17/$C$16 -> 0 | E18: =E17/$C$16 -> 0 | F18: =F17/$C$16 -> 0 | G18: 0 | H18: 0 | I18: 0 | J18: 0 | K18: 0 | L18: 0
A19: Total Sytem CP | B19: DCP4 | C19: =SUM(D19:K19) -> 170620.2927 | D19: ='Hourly load shapes by class'!Q8820 -> 70936.52477 | E19: ='Hourly load shapes by class'!T8820 -> 75141.66465 | F19: ='Hourly load shapes by class'!W8820 -> 618.1735063 | G19: ='Hourly load shapes by class'!Z8820 -> 69.89043636 | I19: ='Hourly load shapes by class'!AC8820 -> 23687.05374 | K19: ='Hourly load shapes by class'!AF8820 -> 166.9855844
L20: ='Hourly load shapes by class'!AI8820 -> 0
A21: 12 CP
A22: Total Sytem CP | B22: DCP12 | C22: =SUM(D22:K22) -> 479016.3895 | D22: ='Hourly load shapes by class'!Q8821 -> 185400.0425 | E22: ='Hourly load shapes by class'!T8821 -> 220250.044 | F22: ='Hourly load shapes by class'!W8821 -> 1442.404848 | G22: ='Hourly load shapes by class'!Z8821 -> 163.0776848 | I22: ='Hourly load shapes by class'!AC8821 -> 71254.31539 | K22: ='Hourly load shapes by class'!AF8821 -> 506.5049734
L23: ='Hourly load shapes by class'!AI8821 -> 0
A24: NON CO_INCIDENT PEAK (kW)
A26: 1 NCP
A27: Classification NCP from Load Data Provider | B27: DNCP1 | C27: =SUM(D27:K27) -> 50785.01305 | D27: ='Hourly load shapes by class'!Q8802 -> 20704.79492 | E27: ='Hourly load shapes by class'!T8802 -> 20691.3125 | F27: ='Hourly load shapes by class'!W8802 -> 206.0578354 | G27: ='Hourly load shapes by class'!Z8802 -> 23.29681212 | I27: ='Hourly load shapes by class'!AC8802 -> 9112.518567 | K27: ='Hourly load shapes by class'!AF8802 -> 47.03241566
L28: ='Hourly load shapes by class'!AI8802 -> 0
A29: 4 NCP | D29: =D28/$C$27 -> 0 | E29: =E28/$C$27 -> 0 | F29: 0 | G29: 0 | H29: 0 | I29: 0 | J29: 0 | K29: 0 | L29: 0
A30: Classification NCP from Load Data Provider | B30: DNCP4 | C30: =SUM(D30:K30) -> 194137.7471 | D30: ='Hourly load shapes by class'!Q8803 -> 79240.35604 | E30: ='Hourly load shapes by class'!T8803 -> 81286.87911 | F30: ='Hourly load shapes by class'!W8803 -> 824.2313417 | G30: ='Hourly load shapes by class'!Z8803 -> 93.18724848 | I30: ='Hourly load shapes by class'!AC8803 -> 32510.42966 | K30: ='Hourly load shapes by class'!AF8803 -> 182.6637067
L31: ='Hourly load shapes by class'!AI8803 -> 0
A32: 12 NCP | D32: =D31/$C$30 -> 0 | E32: =E31/$C$30 -> 0 | F32: 0 | G32: 0 | H32: 0 | I32: 0 | J32: 0 | K32: 0 | L32: 0
A33: Classification NCP from Load Data Provider | B33: DNCP12 | C33: =SUM(D33:K33) -> 532640.6081 | D33: ='Hourly load shapes by class'!Q8804 -> 209532.2632 | E33: ='Hourly load shapes by class'!T8804 -> 236560.4629 | F33: ='Hourly load shapes by class'!W8804 -> 2472.694025 | G33: ='Hourly load shapes by class'!Z8804 -> 279.5617455 | I33: ='Hourly load shapes by class'!AC8804 -> 83289.12122 | K33: ='Hourly load shapes by class'!AF8804 -> 506.5049734
D34: ='Hourly load shapes by class'!O8804 -> 180765.0593 | E34: ='Hourly load shapes by class'!R8804 -> 225621.4561 | F34: ='Hourly load shapes by class'!U8804 -> 4626.658016 | G34: ='Hourly load shapes by class'!X8804 -> 389.7364678 | I34: ='Hourly load shapes by class'!AA8804 -> 79787.52981 | J34: ='Hourly load shapes by class'!AD8804 -> 1069.217517 | K34: ='Hourly load shapes by class'!AF8804 -> 506.5049734 | L34: ='Hourly load shapes by class'!AI8804 -> 0
